Organisation name,Organisation Code,Directorate,Service Category label,Service Category code,Supplier name,Payment date,Transaction number,Net Amount,Purpose of spend,Procurement classification
Southend-on-Sea Borough Council,http://opendatacommunities.org/id/unitary-authority/southend,ED Finance & Resources,Central Services to the Public,7096,Lyreco UK Limited,01/03/2024,12061160,23.8,1 pack of 16 clear tape 19mm x 66m4 packs of 5000 own make staples size 26/61 pack of 4 post it no *,Stationery Stores (5943)
Southend-on-Sea Borough Council,http://opendatacommunities.org/id/unitary-authority/southend,ED Environment & Place,Cultural And Related Services,7515,Sumup *estuary Wholesale,01/03/2024,12061160,32.98,Flowers for the floristry orders.,Misc Speciality Retail (5999)
Southend-on-Sea Borough Council,http://opendatacommunities.org/id/unitary-authority/southend,ED Environment & Place,Cultural And Related Services,4200,Toolstation Uk,01/03/2024,12061160,23.97,Tools and equipment for Park Warden and Landscape Team,Hardware Stores (5251)
Southend-on-Sea Borough Council,http://opendatacommunities.org/id/unitary-authority/southend,ED Environment & Place,Cultural And Related Services,4200,Lidl Gb Hadleigh,01/03/2024,12061160,41.48,Food and drink for volunteer groups,Grocery Stores/Supermarkets (5411)
Southend-on-Sea Borough Council,http://opendatacommunities.org/id/unitary-authority/southend,ED Environment & Place,Cultural And Related Services,4200,Travis Perkins,01/03/2024,12061160,86.4,Materials for Landscape Team,Lumber/Build. Supply Stores (5211)
Southend-on-Sea Borough Council,http://opendatacommunities.org/id/unitary-authority/southend,ED Adults & Communities,Cultural And Related Services,4285,Amazon* 202-7918897-31,01/03/2024,12061160,23.89,paper towels for use in staff and public areas in Kent Elms Library,Misc Gen Merchandise - Def (5399)
Southend-on-Sea Borough Council,http://opendatacommunities.org/id/unitary-authority/southend,ED Adults & Communities,Cultural And Related Services,4020,Alamy.Com Limited,01/03/2024,12061160,180,Images for the Roman's exhibition.,Art Dealers & Galleries (5971)
Southend-on-Sea Borough Council,http://opendatacommunities.org/id/unitary-authority/southend,ED Environment & Place,Central Services to the Public,7175,Www.Ccscollect.Co.Uk,01/03/2024,12061160,81.68,DVLA Fine for KD04,Misc Personal Serv - Def (7299)
Southend-on-Sea Borough Council,http://opendatacommunities.org/id/unitary-authority/southend,ED Environment & Place,Central Services to the Public,7175,Dvla Vehicle Tax,01/03/2024,12061160,320,GJZ vehicle tax,Tax Payments (9311)
Southend-on-Sea Borough Council,http://opendatacommunities.org/id/unitary-authority/southend,ED Environment & Place,Central Services to the Public,7175,Dvla Vehicle Tax,01/03/2024,12061160,320,KHJ Vehicle tax,Tax Payments (9311)
Southend-on-Sea Borough Council,http://opendatacommunities.org/id/unitary-authority/southend,ED Environment & Place,Central Services to the Public,7175,Dvla Vehicle Tax,01/03/2024,12061160,320,vehicle tax for GJF,Tax Payments (9311)
Southend-on-Sea Borough Council,http://opendatacommunities.org/id/unitary-authority/southend,ED Environment & Place,Central Services to the Public,7175,Dvla Vehicle Tax,01/03/2024,12061160,320,vehicle tax for GJJ,Tax Payments (9311)
Southend-on-Sea Borough Council,http://opendatacommunities.org/id/unitary-authority/southend,ED Environment & Place,Central Services to the Public,7175,Dvla Vehicle Tax,01/03/2024,12061160,320,GJU vehicle tax,Tax Payments (9311)
Southend-on-Sea Borough Council,http://opendatacommunities.org/id/unitary-authority/southend,ED Environment & Place,Central Services to the Public,7175,Dvla Vehicle Tax,01/03/2024,12061160,320,vehicle tax for BHV,Tax Payments (9311)
Southend-on-Sea Borough Council,http://opendatacommunities.org/id/unitary-authority/southend,ED Environment & Place,Central Services to the Public,7175,Dvla Vehicle Tax,01/03/2024,12061160,320,vehicle tax for CUK,Tax Payments (9311)
Southend-on-Sea Borough Council,http://opendatacommunities.org/id/unitary-authority/southend,ED Environment & Place,Central Services to the Public,7175,Dvla Vehicle Tax,01/03/2024,12061160,320,vehicle tax for CVL,Tax Payments (9311)
Southend-on-Sea Borough Council,http://opendatacommunities.org/id/unitary-authority/southend,ED Environment & Place,Central Services to the Public,7175,Dvla Vehicle Tax,01/03/2024,12061160,320,GJV vehicle tax,Tax Payments (9311)
Southend-on-Sea Borough Council,http://opendatacommunities.org/id/unitary-authority/southend,ED Children & Public Health,Children And Education Services,3396,Yourparkingspace.Co.Uk,01/03/2024,12061160,3.1,Parking at Southend Hospital.,"Parking Lots, Meters, Garages (7523)"
Southend-on-Sea Borough Council,http://opendatacommunities.org/id/unitary-authority/southend,ED Children & Public Health,Children And Education Services,3396,Medirest Costa,01/03/2024,12061160,14.9,Hospital visit to see MG- Looked after child. Food purchased for MG.,Caterers (5811)
Southend-on-Sea Borough Council,http://opendatacommunities.org/id/unitary-authority/southend,ED Adults & Communities,Adult Social Care,1060,Www.Argos.Co.Uk,01/03/2024,12061160,35,Medi Safe for IN,Department Stores (5311)
Southend-on-Sea Borough Council,http://opendatacommunities.org/id/unitary-authority/southend,ED Environment & Place,Highways And Transport Services,5000,Lul Ticket Machine,01/03/2024,12061160,8.7,Travel back from roundtable event,Passenger Railways (4112)
Southend-on-Sea Borough Council,http://opendatacommunities.org/id/unitary-authority/southend,ED Strategy & Change,Children And Education Services,3201,Bls Stay Compliant,01/03/2024,12061160,354,Online Senior Information Risk Owner(SIRO) Training - 14th March 2024,Mgmt/Consult/Public Rel Ser (7392)
Southend-on-Sea Borough Council,http://opendatacommunities.org/id/unitary-authority/southend,ED Children & Public Health,Children And Education Services,3098,Asda Superstore,01/03/2024,12061160,12.6,refreshments for event,Grocery Stores/Supermarkets (5411)
Southend-on-Sea Borough Council,http://opendatacommunities.org/id/unitary-authority/southend,ED Children & Public Health,Children And Education Services,3098,Asda Superstore,01/03/2024,12061160,22.39,refreshments for event,Grocery Stores/Supermarkets (5411)
Southend-on-Sea Borough Council,http://opendatacommunities.org/id/unitary-authority/southend,ED Adults & Communities,Cultural And Related Services,4120,Amazon* 204-0879363-30,01/03/2024,12061160,9.99,For use on the Pier,Misc Gen Merchandise - Def (5399)
Southend-on-Sea Borough Council,http://opendatacommunities.org/id/unitary-authority/southend,ED Adults & Communities,Cultural And Related Services,4120,The Range,01/03/2024,12061160,19.98,For use on the Pier,Misc Home Furnishing (5719)
Southend-on-Sea Borough Council,http://opendatacommunities.org/id/unitary-authority/southend,ED Adults & Communities,Cultural And Related Services,4120,Mark One Hire Ltd,01/03/2024,12061160,144,Pasma training for Pier colleague.,Equip/Furn Rent/Lease Serv (7394)
Southend-on-Sea Borough Council,http://opendatacommunities.org/id/unitary-authority/southend,ED Finance & Resources,Central Services to the Public,7140,Amznmktplace,01/03/2024,12061160,13.47,Amazon Basics 10-Pack of CR123A 3 V Lithium Batteries,Misc Speciality Retail (5999)
Southend-on-Sea Borough Council,http://opendatacommunities.org/id/unitary-authority/southend,ED Adults & Communities,Cultural And Related Services,4225,Wix.Com 1102708473,01/03/2024,12061160,10.5,Wix - Halloween Parade monthly website hosting fees,Digital Goods - Applications (Excludes Games) (5817)
Southend-on-Sea Borough Council,http://opendatacommunities.org/id/unitary-authority/southend,ED Children & Public Health,Children And Education Services,3030,Amazon* Crfc033,01/03/2024,12061160,28.51,bulk buy dishwasher tablets Cambridge Road,Misc Gen Merchandise - Def (5399)
Southend-on-Sea Borough Council,http://opendatacommunities.org/id/unitary-authority/southend,ED Adults & Communities,Cultural And Related Services,4015,Www.Filmbank.Co.Uk,01/03/2024,12061160,208.8,Film license for film screening event,Films/Video Production/Dist (7829)
Southend-on-Sea Borough Council,http://opendatacommunities.org/id/unitary-authority/southend,ED Adults & Communities,Cultural And Related Services,4120,Amazon* 204-7378369-12,01/03/2024,12061160,12.37,For use on the Pier,Misc Gen Merchandise - Def (5399)
Southend-on-Sea Borough Council,http://opendatacommunities.org/id/unitary-authority/southend,ED Adults & Communities,Cultural And Related Services,4120,Amazon* 204-1069098-68,01/03/2024,12061160,22.21,For use on the Pier,Misc Gen Merchandise - Def (5399)
Southend-on-Sea Borough Council,http://opendatacommunities.org/id/unitary-authority/southend,ED Strategy & Change,Central Services to the Public,2045,Facebk *42d3n2ynp2,01/03/2024,12061160,34.83,Family Centre consultation - social media (FB and Instagram),Advertising Services (7311)
Southend-on-Sea Borough Council,http://opendatacommunities.org/id/unitary-authority/southend,ED Adults & Communities,Cultural And Related Services,4025,Sp Northern,01/03/2024,12061160,54.29,"Materials for interactive in Romans exhibition, Central Museum",Sporting Goods Stores (5941)
Southend-on-Sea Borough Council,http://opendatacommunities.org/id/unitary-authority/southend,ED Children & Public Health,Children And Education Services,3455,Tlswi.Com,01/03/2024,12061160,180,Theraputic Life Story Work annual membership for AH social worker in the adoption team,Member Organizations - Def (8699)
Southend-on-Sea Borough Council,http://opendatacommunities.org/id/unitary-authority/southend,ED Children & Public Health,Children And Education Services,3030,Asda Superstore,01/03/2024,12061160,2.65,Snacks for sessions,Grocery Stores/Supermarkets (5411)
Southend-on-Sea Borough Council,http://opendatacommunities.org/id/unitary-authority/southend,ED Children & Public Health,Children And Education Services,3030,Asda Superstore,01/03/2024,12061160,4.75,Snacks for sessions,Grocery Stores/Supermarkets (5411)
Southend-on-Sea Borough Council,http://opendatacommunities.org/id/unitary-authority/southend,ED Finance & Resources,Central Services to the Public,7140,Amazon* 204-4001713-83,01/03/2024,12061160,19.85,plates for tower kitchen stock,Misc Gen Merchandise - Def (5399)
Southend-on-Sea Borough Council,http://opendatacommunities.org/id/unitary-authority/southend,ED Finance & Resources,Central Services to the Public,7140,Amazon* 204-4001713-83,01/03/2024,12061160,39.7,Plates for civic1 tower stock,Misc Gen Merchandise - Def (5399)
Southend-on-Sea Borough Council,http://opendatacommunities.org/id/unitary-authority/southend,ED Children & Public Health,Children And Education Services,3692,Kent County Council,01/03/2024,12061160,11,Birth certificate REDACTED PERSONAL DATA,Govt Serv - Default (9399)
Southend-on-Sea Borough Council,http://opendatacommunities.org/id/unitary-authority/southend,ED Children & Public Health,Children And Education Services,3692,Gen Register Office,01/03/2024,12061160,14,Birth certificate REDACTED PERSONAL DATA,Govt Serv - Default (9399)
Southend-on-Sea Borough Council,http://opendatacommunities.org/id/unitary-authority/southend,ED Environment & Place,Environmental And Regulatory Services,4505,Amznmktplace,01/03/2024,12061160,24.57,wall clocks for the crematorium chapels,Misc Speciality Retail (5999)
Southend-on-Sea Borough Council,http://opendatacommunities.org/id/unitary-authority/southend,ED Environment & Place,Environmental And Regulatory Services,4505,Amazon* 203-6025173-51,01/03/2024,12061160,25,yellow duct tape for floor markings,Misc Gen Merchandise - Def (5399)
Southend-on-Sea Borough Council,http://opendatacommunities.org/id/unitary-authority/southend,ED Strategy & Change,Children And Education Services,3201,Amazon* 205-5712871-61,01/03/2024,12061160,13.98,Presentation Clicker Pointer for event,Misc Gen Merchandise - Def (5399)
Southend-on-Sea Borough Council,http://opendatacommunities.org/id/unitary-authority/southend,ED Strategy & Change,Children And Education Services,3201,Adobe.Com,01/03/2024,12061160,28.3,Adobe Captivate e-learning design tool for BM,Digital Goods - Applications (Excludes Games) (5817)
Southend-on-Sea Borough Council,http://opendatacommunities.org/id/unitary-authority/southend,ED Children & Public Health,Public Health,7678,Facebk Qblzg2gl72,01/03/2024,12061160,32.92,Social Media Advertising for Healthy Schools Programme,Advertising Services (7311)
Southend-on-Sea Borough Council,http://opendatacommunities.org/id/unitary-authority/southend,ED Children & Public Health,Children And Education Services,3265,Amazon* 026-9722257-30,01/03/2024,12061160,5.87,Pens for Fostering team,Misc Gen Merchandise - Def (5399)
Southend-on-Sea Borough Council,http://opendatacommunities.org/id/unitary-authority/southend,ED Children & Public Health,Children And Education Services,3455,Amazon* 026-4789510-37,01/03/2024,12061160,16.75,Workbooks for Adoption Work shop,Misc Gen Merchandise - Def (5399)
Southend-on-Sea Borough Council,http://opendatacommunities.org/id/unitary-authority/southend,ED Children & Public Health,Children And Education Services,3265,Amazon* 026-4635319-56,01/03/2024,12061160,23.98,6 x hard back notepads for Fostering team,Misc Gen Merchandise - Def (5399)
Southend-on-Sea Borough Council,http://opendatacommunities.org/id/unitary-authority/southend,ED Children & Public Health,Central Services to the Public,1446,Amznmktplace,01/03/2024,12061160,18.99,1 inch desk risers for home desk as desk too low,Misc Speciality Retail (5999)
Southend-on-Sea Borough Council,http://opendatacommunities.org/id/unitary-authority/southend,ED Finance & Resources,Central Services to the Public,7160,Post Office Counter,01/03/2024,12061160,2.75,Tate & Morgan CVI - Signed for letter to Liquidator,Postage Stamps (9402)
Southend-on-Sea Borough Council,http://opendatacommunities.org/id/unitary-authority/southend,ED Adults & Communities,Cultural And Related Services,4120,Amazon* 29022024rs,01/03/2024,12061160,39.6,retractable barrier tape - No entry.,Misc Gen Merchandise - Def (5399)
Southend-on-Sea Borough Council,http://opendatacommunities.org/id/unitary-authority/southend,ED Children & Public Health,Children And Education Services,3310,Amznmktplace,01/03/2024,12061160,154.98,Additional digital platform screen to support VR Training for Designated Teachers.,Misc Speciality Retail (5999)
Southend-on-Sea Borough Council,http://opendatacommunities.org/id/unitary-authority/southend,ED Strategy & Change,Children And Education Services,3201,The Commission For Local,01/03/2024,12061160,75,REDACTED PERSONAL DATA - Complaint Handling Course,Vocational/Trade Schools (8249)
Southend-on-Sea Borough Council,http://opendatacommunities.org/id/unitary-authority/southend,Department of the Chief Executive,Cultural And Related Services,7111,Thomson Reuters UK Ltd,01/03/2024,12061160,105.6,JCT ON DEMAND CONTRACT FOR PRJ 1803 MW2016,Professional Services - Def (8999)
Southend-on-Sea Borough Council,http://opendatacommunities.org/id/unitary-authority/southend,ED Adults & Communities,Cultural And Related Services,4020,Alamy.Com Limited,01/03/2024,12061160,18,Image purchase for the Romans exhibition.,Art Dealers & Galleries (5971)
Southend-on-Sea Borough Council,http://opendatacommunities.org/id/unitary-authority/southend,ED Children & Public Health,Children And Education Services,3265,Google Ads2830285278,01/03/2024,12061160,147.19,Google paid search to drive prospective foster carer enquiries,Advertising Services (7311)
Southend-on-Sea Borough Council,http://opendatacommunities.org/id/unitary-authority/southend,ED Children & Public Health,Children And Education Services,3030,Tesco Stores 3177,01/03/2024,12061160,2.64,Resources for Family Centre Sessions,Grocery Stores/Supermarkets (5411)
Southend-on-Sea Borough Council,http://opendatacommunities.org/id/unitary-authority/southend,ED Children & Public Health,Children And Education Services,3692,Hm Passport Office,01/03/2024,12061160,53.5,FLP passport,Govt Serv - Default (9399)
Southend-on-Sea Borough Council,http://opendatacommunities.org/id/unitary-authority/southend,ED Children & Public Health,Children And Education Services,3692,Hm Passport Office,01/03/2024,12061160,53.5,BP passport,Govt Serv - Default (9399)
Southend-on-Sea Borough Council,http://opendatacommunities.org/id/unitary-authority/southend,ED Adults & Communities,Adult Social Care,1060,Amznmktplace,01/03/2024,12061160,64.95,Cabin Wheel Bag. Authorised by AS for BU,Misc Speciality Retail (5999)
Southend-on-Sea Borough Council,http://opendatacommunities.org/id/unitary-authority/southend,ED Environment & Place,Housing Services,6011,Www.Argos.Co.Uk,01/03/2024,12061160,13.5,mobile phone for rough sleeping client,Department Stores (5311)
Southend-on-Sea Borough Council,http://opendatacommunities.org/id/unitary-authority/southend,ED Children & Public Health,Children And Education Services,3249,Starbucks Coffee,01/03/2024,12061160,4.02,refreshments for out of area visit to aru cam bridge,Fast Food Restaurants (5814)
Southend-on-Sea Borough Council,http://opendatacommunities.org/id/unitary-authority/southend,ED Children & Public Health,Children And Education Services,3249,Starbucks Coffee,01/03/2024,12061160,4.16,refreshments for colleague for out of area event at ARU cambridge,Fast Food Restaurants (5814)
Southend-on-Sea Borough Council,http://opendatacommunities.org/id/unitary-authority/southend,ED Environment & Place,Cultural And Related Services,7520,Premier Plants Uk,01/03/2024,12061160,64.8,Plants to fill order as not in stock,Lawn/Garden Supply/Nursery (5261)
Southend-on-Sea Borough Council,http://opendatacommunities.org/id/unitary-authority/southend,ED Adults & Communities,Cultural And Related Services,4015,Vistaprint,01/03/2024,12061160,84.95,Business cards,Business Services - Default (7399)
Southend-on-Sea Borough Council,http://opendatacommunities.org/id/unitary-authority/southend,ED Adults & Communities,Cultural And Related Services,4045,Sumup *emma Devine,01/03/2024,12061160,107.45,Products for sale in Beecroft shop,Misc Speciality Retail (5999)
Southend-on-Sea Borough Council,http://opendatacommunities.org/id/unitary-authority/southend,ED Adults & Communities,Cultural And Related Services,4120,Amznbusiness,01/03/2024,12061160,35,For use on the Pier,Misc Speciality Retail (5999)
Southend-on-Sea Borough Council,http://opendatacommunities.org/id/unitary-authority/southend,ED Children & Public Health,Children And Education Services,3265,Facebk Chvtgz3uk2,02/03/2024,12061160,400,Targeted paid digital advertising to raise awareness and drive prospective foster carer enquiries,Advertising Services (7311)
Southend-on-Sea Borough Council,http://opendatacommunities.org/id/unitary-authority/southend,ED Adults & Communities,Cultural And Related Services,4015,Mailchimp,02/03/2024,12061160,35.87,Mailchimp for museum newsletter,Digital Goods - Large Digital Goods Merchant (5818)
Southend-on-Sea Borough Council,http://opendatacommunities.org/id/unitary-authority/southend,ED Adults & Communities,Cultural And Related Services,4120,Marks&spencer Plc,02/03/2024,12061160,22.5,Uniform for use on the Pier,Grocery Stores/Supermarkets (5411)
Southend-on-Sea Borough Council,http://opendatacommunities.org/id/unitary-authority/southend,ED Adults & Communities,Cultural And Related Services,4120,Gorillaworkwear.Co.Uk,02/03/2024,12061160,23.77,uniform for use on the Pier,Mens/Womens Clothing Stores (5691)
Southend-on-Sea Borough Council,http://opendatacommunities.org/id/unitary-authority/southend,ED Children & Public Health,Children And Education Services,3265,Amazon* 026-8556528-53,01/03/2024,12061160,12.69,6 x workbooks - Fostering Team,Misc Gen Merchandise - Def (5399)
Southend-on-Sea Borough Council,http://opendatacommunities.org/id/unitary-authority/southend,ED Strategy & Change,Central Services to the Public,7130,Phoenix Software,04/03/2024,12061160,206.4,1 x CoPilot License.,Computers/Peripherals/Software (5045)
Southend-on-Sea Borough Council,http://opendatacommunities.org/id/unitary-authority/southend,ED Adults & Communities,Cultural And Related Services,4290,Amznmktplace,04/03/2024,12061160,24.98,air fresheners for use in all SCC branch libraries,Misc Speciality Retail (5999)
Southend-on-Sea Borough Council,http://opendatacommunities.org/id/unitary-authority/southend,ED Adults & Communities,Cultural And Related Services,4025,Kontri Ltd,04/03/2024,12061160,366.66,"Materials for interactive in Romans exhibition, Central Museum",Misc Speciality Retail (5999)
Southend-on-Sea Borough Council,http://opendatacommunities.org/id/unitary-authority/southend,ED Children & Public Health,Children And Education Services,3030,Asda Superstore,04/03/2024,12061160,2.29,Resources for Family Centre Sessions,Grocery Stores/Supermarkets (5411)
Southend-on-Sea Borough Council,http://opendatacommunities.org/id/unitary-authority/southend,ED Children & Public Health,Children And Education Services,3030,Asda Superstore,04/03/2024,12061160,8.36,Resources for Family Centre Sessions,Grocery Stores/Supermarkets (5411)
Southend-on-Sea Borough Council,http://opendatacommunities.org/id/unitary-authority/southend,ED Children & Public Health,Children And Education Services,3030,Asda Superstore,04/03/2024,12061160,0.3,Snacks for family centres,Grocery Stores/Supermarkets (5411)
Southend-on-Sea Borough Council,http://opendatacommunities.org/id/unitary-authority/southend,ED Children & Public Health,Children And Education Services,3030,Asda Superstore,04/03/2024,12061160,6.9,Snacks for family centres,Grocery Stores/Supermarkets (5411)
Southend-on-Sea Borough Council,http://opendatacommunities.org/id/unitary-authority/southend,ED Finance & Resources,Central Services to the Public,7096,Amznbusiness,04/03/2024,12061160,27.76,8 x twine 333 ft 3 ply 2mm for putting up site notices for planning.,Misc Speciality Retail (5999)
Southend-on-Sea Borough Council,http://opendatacommunities.org/id/unitary-authority/southend,ED Children & Public Health,Public Health,7713,Inst.Ofhealthvisiting,04/03/2024,12061160,71,Attendance at evidence-based iHV conference,Charitable/Soc Service Orgs (8398)
Southend-on-Sea Borough Council,http://opendatacommunities.org/id/unitary-authority/southend,ED Environment & Place,Housing Services,6011,McDonalds 16,04/03/2024,12061160,5.89,Meal for rough sleeping client,Fast Food Restaurants (5814)
Southend-on-Sea Borough Council,http://opendatacommunities.org/id/unitary-authority/southend,ED Environment & Place,Central Services to the Public,7540,Anglia Battery And Fil,04/03/2024,12061160,48,This purchase is to supply machine parts used in the mower repair workshop.,Automotive Parts Stores (5533)
Southend-on-Sea Borough Council,http://opendatacommunities.org/id/unitary-authority/southend,ED Environment & Place,Central Services to the Public,7540,Leigh Baxter Associate,04/03/2024,12061160,237.1,This purchase is to supply & fabricate hydro pies & fitting required for use in the mower repair sho *,Architectural/Eng/Survey (8911)
Southend-on-Sea Borough Council,http://opendatacommunities.org/id/unitary-authority/southend,ED Children & Public Health,Children And Education Services,3455,Stansted Airport,04/03/2024,12061160,59,This needs to be allocated to a different cost centre - to 3220 Plans & Reviews. This is for Car Pa *,"Parking Lots, Meters, Garages (7523)"
Southend-on-Sea Borough Council,http://opendatacommunities.org/id/unitary-authority/southend,ED Adults & Communities,Cultural And Related Services,4261,Amazon* 205-1520316-73,04/03/2024,12061160,23,Kettle for Library warm welcome sessions,Misc Gen Merchandise - Def (5399)
Southend-on-Sea Borough Council,http://opendatacommunities.org/id/unitary-authority/southend,ED Adults & Communities,Cultural And Related Services,4225,Amznmktplace,05/03/2024,12061160,-12.71,Credit Voucher Amznmktplace,Misc Speciality Retail (5999)
Southend-on-Sea Borough Council,http://opendatacommunities.org/id/unitary-authority/southend,ED Environment & Place,Cultural And Related Services,7515,Sumup *estuary Wholesale,05/03/2024,12061160,81.19,Flowers for the floristry orders.,Misc Speciality Retail (5999)
Southend-on-Sea Borough Council,http://opendatacommunities.org/id/unitary-authority/southend,ED Environment & Place,Cultural And Related Services,4200,Lidl Gb Southend,05/03/2024,12061160,20.95,Food and drink and tools for volunteer group,Grocery Stores/Supermarkets (5411)
Southend-on-Sea Borough Council,http://opendatacommunities.org/id/unitary-authority/southend,ED Environment & Place,Cultural And Related Services,4200,Lidl Gb Southend,05/03/2024,12061160,7.75,Food and drink and tools for volunteer group,Grocery Stores/Supermarkets (5411)
Southend-on-Sea Borough Council,http://opendatacommunities.org/id/unitary-authority/southend,ED Environment & Place,Cultural And Related Services,4200,Painters World,05/03/2024,12061160,167.96,Paint for volunteer groups and Landscape Team,Paint (5198)
Southend-on-Sea Borough Council,http://opendatacommunities.org/id/unitary-authority/southend,ED Adults & Communities,Cultural And Related Services,4025,Whaleys-Bradford,05/03/2024,12061160,27.95,"Conservation materials for Roman objects, Central Museum",Fabric Stores (5949)
Southend-on-Sea Borough Council,http://opendatacommunities.org/id/unitary-authority/southend,ED Adults & Communities,Cultural And Related Services,4025,Sp Pound Fabrics,05/03/2024,12061160,59.49,"Materials for interactive in Romans exhibition, Central Museum",Fabric Stores (5949)
Southend-on-Sea Borough Council,http://opendatacommunities.org/id/unitary-authority/southend,ED Adults & Communities,Cultural And Related Services,4025,Clear Prospects Ltd,05/03/2024,12061160,63.44,"Materials for interactive in Romans exhibition, Central Museum",Photo Studios (7221)
Southend-on-Sea Borough Council,http://opendatacommunities.org/id/unitary-authority/southend,ED Adults & Communities,Cultural And Related Services,4025,Www.Tjdc.Co.Uk,05/03/2024,12061160,244.2,"Mounts for artefact display, Central Museum",Jewelry Stores (5944)
Southend-on-Sea Borough Council,http://opendatacommunities.org/id/unitary-authority/southend,ED Children & Public Health,Children And Education Services,3436,Costa Coffee 43011828,05/03/2024,12061160,8.75,Drinks for YP during intervention session - unable to take place in placement,Fast Food Restaurants (5814)
Southend-on-Sea Borough Council,http://opendatacommunities.org/id/unitary-authority/southend,ED Environment & Place,Planning & Economy Services,5615,Twenty One Southend,05/03/2024,12061160,200,Workshop for SPF - Booked venue at twenty one.,Real Estate Agents And Managers (6513)
Southend-on-Sea Borough Council,http://opendatacommunities.org/id/unitary-authority/southend,ED Children & Public Health,Children And Education Services,3030,Sainsburys S/mkts,05/03/2024,12061160,1.41,Resources for Family Centre Sessions,Grocery Stores/Supermarkets (5411)
Southend-on-Sea Borough Council,http://opendatacommunities.org/id/unitary-authority/southend,ED Children & Public Health,Children And Education Services,3030,Asda Superstore,05/03/2024,12061160,2.6,Resources for Family Centre Sessions,Grocery Stores/Supermarkets (5411)
Southend-on-Sea Borough Council,http://opendatacommunities.org/id/unitary-authority/southend,ED Children & Public Health,Children And Education Services,3396,McDonalds 1217,05/03/2024,12061160,3.99,CH looked after visit. - food.,Fast Food Restaurants (5814)
Southend-on-Sea Borough Council,http://opendatacommunities.org/id/unitary-authority/southend,ED Strategy & Change,Central Services to the Public,2210,Griffin Designs/S4w,05/03/2024,12061160,59.8,Gazebo banner for road shows.,Commercial Photo/Art/Graph (7333)
Southend-on-Sea Borough Council,http://opendatacommunities.org/id/unitary-authority/southend,ED Adults & Communities,Cultural And Related Services,4055,Stagedepot.Co.Uk,05/03/2024,12061160,20.33,Carpet tape,Hardware Stores (5251)
Southend-on-Sea Borough Council,http://opendatacommunities.org/id/unitary-authority/southend,ED Adults & Communities,Cultural And Related Services,4055,Sp Anti Slip Safety,05/03/2024,12061160,46.28,Materials REDACTED PERSONAL DATA,Hardware Stores (5251)
Southend-on-Sea Borough Council,http://opendatacommunities.org/id/unitary-authority/southend,ED Adults & Communities,Cultural And Related Services,4055,Toolstation Uk,05/03/2024,12061160,52.35,Materials,Hardware Stores (5251)
Southend-on-Sea Borough Council,http://opendatacommunities.org/id/unitary-authority/southend,ED Adults & Communities,Cultural And Related Services,4055,Www.Builderdepot.Co.Uk,05/03/2024,12061160,120.19,Materials REDACTED PERSONAL DATA,Lumber/Build. Supply Stores (5211)
Southend-on-Sea Borough Council,http://opendatacommunities.org/id/unitary-authority/southend,ED Children & Public Health,Children And Education Services,3030,Amazon* 204-5657077-72,05/03/2024,12061160,9.99,bottles for baby massage,Misc Gen Merchandise - Def (5399)
Southend-on-Sea Borough Council,http://opendatacommunities.org/id/unitary-authority/southend,ED Finance & Resources,Central Services to the Public,7140,Amazon* 204-9273993-65,05/03/2024,12061160,14.26,stain blocker for stock,Misc Gen Merchandise - Def (5399)
Southend-on-Sea Borough Council,http://opendatacommunities.org/id/unitary-authority/southend,ED Finance & Resources,Central Services to the Public,7140,Amazon* 204-4305816-09,05/03/2024,12061160,56.94,bin bags for stock,Misc Gen Merchandise - Def (5399)
Southend-on-Sea Borough Council,http://opendatacommunities.org/id/unitary-authority/southend,ED Children & Public Health,Public Health,7677,Sainsburys S/Mkts,05/03/2024,12061160,13.2,Snacks to support delivery of Health4Life weight management programme,Grocery Stores/Supermarkets (5411)
Southend-on-Sea Borough Council,http://opendatacommunities.org/id/unitary-authority/southend,ED Children & Public Health,,7720,Etsy.Com*familiesandbabie,05/03/2024,12061160,45,Colostrum spoons for infant feeding team to support breastfeeding (A Better Start),Misc Gen Merchandise - Def (5399)
Southend-on-Sea Borough Council,http://opendatacommunities.org/id/unitary-authority/southend,ED Children & Public Health,,7720,Etsy.Com*woolyknitsandcro,05/03/2024,12061160,145.96,Lactation puppets for infant feeding team to support breastfeeding (A Better Start) including intern *,Misc Gen Merchandise - Def (5399)
Southend-on-Sea Borough Council,http://opendatacommunities.org/id/unitary-authority/southend,ED Children & Public Health,,7720,Etsy.Com*woolyknitsandcro,05/03/2024,12061160,29.8,Lactation puppets for infant feeding team to support breastfeeding (A Better Start) including intern *,Misc Gen Merchandise - Def (5399)
Southend-on-Sea Borough Council,http://opendatacommunities.org/id/unitary-authority/southend,ED Children & Public Health,,7720,Amznbusiness,05/03/2024,12061160,187.55,Items to support delivery of infant feeding through A Better Start Southend,Misc Speciality Retail (5999)
Southend-on-Sea Borough Council,http://opendatacommunities.org/id/unitary-authority/southend,ED Children & Public Health,,7720,Oralhealthf,05/03/2024,12061160,237.6,Items to support delivery of oral health messages for healthy child programme /A Better Start Southe *,Charitable/Soc Service Orgs (8398)
Southend-on-Sea Borough Council,http://opendatacommunities.org/id/unitary-authority/southend,ED Children & Public Health,,7720,Oralhealthf,05/03/2024,12061160,8.1,Items to support delivery of oral health messages for healthy child programme /A Better Start Southe *,Charitable/Soc Service Orgs (8398)
Southend-on-Sea Borough Council,http://opendatacommunities.org/id/unitary-authority/southend,ED Children & Public Health,Children And Education Services,3471,Home Bargains Southend,05/03/2024,12061160,2.99,washing up liquid for SYC kitchen,Misc Gen Merchandise - Def (5399)
Southend-on-Sea Borough Council,http://opendatacommunities.org/id/unitary-authority/southend,ED Children & Public Health,Children And Education Services,3471,Lidl Gb Southend,05/03/2024,12061160,4.89,food for SYC cafe,Grocery Stores/Supermarkets (5411)
Southend-on-Sea Borough Council,http://opendatacommunities.org/id/unitary-authority/southend,ED Children & Public Health,Children And Education Services,3471,Lidl Gb,05/03/2024,12061160,6.75,bread for syc cafe and youth work,Grocery Stores/Supermarkets (5411)
Southend-on-Sea Borough Council,http://opendatacommunities.org/id/unitary-authority/southend,ED Children & Public Health,Children And Education Services,3471,Asda Superstore,05/03/2024,12061160,12,frying pan for syc cafe and food supplies for youth work,Grocery Stores/Supermarkets (5411)
Southend-on-Sea Borough Council,http://opendatacommunities.org/id/unitary-authority/southend,ED Children & Public Health,Children And Education Services,3471,Asda Superstore,05/03/2024,12061160,16.39,frying pan for syc cafe and food supplies for youth work,Grocery Stores/Supermarkets (5411)
Southend-on-Sea Borough Council,http://opendatacommunities.org/id/unitary-authority/southend,ED Children & Public Health,Children And Education Services,3471,Lidl Gb,05/03/2024,12061160,51.14,food and cleaning supplies for SYC cafe and youth work,Grocery Stores/Supermarkets (5411)
Southend-on-Sea Borough Council,http://opendatacommunities.org/id/unitary-authority/southend,ED Children & Public Health,Children And Education Services,3471,Lidl Gb,05/03/2024,12061160,6.15,food and cleaning supplies for SYC cafe and youth work,Grocery Stores/Supermarkets (5411)
Southend-on-Sea Borough Council,http://opendatacommunities.org/id/unitary-authority/southend,Department of the Chief Executive,Cultural And Related Services,7111,Amznmktplace,05/03/2024,12061160,9.18,Forum - 10No Duracell CR2032 batteries,Misc Speciality Retail (5999)
Southend-on-Sea Borough Council,http://opendatacommunities.org/id/unitary-authority/southend,ED Environment & Place,Cultural And Related Services,7510,Www.Screwfix.Com,05/03/2024,12061160,218.94,Safety boots,Lumber/Build. Supply Stores (5211)
Southend-on-Sea Borough Council,http://opendatacommunities.org/id/unitary-authority/southend,ED Environment & Place,Central Services to the Public,7540,Leigh Lock And Safe Co Lt,05/03/2024,12061160,19.5,This purchase is to cut & supply keys for use on the Parks department.,Business Services - Default (7399)
Southend-on-Sea Borough Council,http://opendatacommunities.org/id/unitary-authority/southend,ED Children & Public Health,Central Services to the Public,1035,"Posit Software, Pbc",05/03/2024,12061160,284.17,SmartSouthend Shiny apps for 03/24,Computer Program/Sys Design (7372)
Southend-on-Sea Borough Council,http://opendatacommunities.org/id/unitary-authority/southend,ED Adults & Communities,Cultural And Related Services,4015,Eb *refund To Buyer,05/03/2024,12061160,5,Eventbrite ticket refund - no receipt,Business Services - Default (7399)
Southend-on-Sea Borough Council,http://opendatacommunities.org/id/unitary-authority/southend,ED Adults & Communities,Cultural And Related Services,4015,Eb *refund To Buyer,05/03/2024,12061160,18.39,Eventbrite ticket refund - no receipt,Business Services - Default (7399)
Southend-on-Sea Borough Council,http://opendatacommunities.org/id/unitary-authority/southend,ED Adults & Communities,Cultural And Related Services,4015,Eb *refund To Buyer,05/03/2024,12061160,18.39,Eventbrite ticket refund - no receipt,Business Services - Default (7399)
Southend-on-Sea Borough Council,http://opendatacommunities.org/id/unitary-authority/southend,ED Adults & Communities,Cultural And Related Services,4285,Asda Superstore,05/03/2024,12061160,3.2,Volunteer refreshments for all branch sites,Grocery Stores/Supermarkets (5411)
Southend-on-Sea Borough Council,http://opendatacommunities.org/id/unitary-authority/southend,ED Adults & Communities,Cultural And Related Services,4270,Asda Superstore,05/03/2024,12061160,3,Volunteer refreshments for all branch sites,Grocery Stores/Supermarkets (5411)
Southend-on-Sea Borough Council,http://opendatacommunities.org/id/unitary-authority/southend,ED Adults & Communities,Cultural And Related Services,4280,Asda Superstore,05/03/2024,12061160,4.19,Volunteer refreshments for all branch sites,Grocery Stores/Supermarkets (5411)
Southend-on-Sea Borough Council,http://opendatacommunities.org/id/unitary-authority/southend,ED Adults & Communities,Cultural And Related Services,4290,Asda Superstore,05/03/2024,12061160,3,Volunteer refreshments for all branch sites,Grocery Stores/Supermarkets (5411)
Southend-on-Sea Borough Council,http://opendatacommunities.org/id/unitary-authority/southend,ED Adults & Communities,Cultural And Related Services,4263,Asda Superstore,05/03/2024,12061160,10.39,Volunteer refreshments for all branch sites,Grocery Stores/Supermarkets (5411)
Southend-on-Sea Borough Council,http://opendatacommunities.org/id/unitary-authority/southend,ED Children & Public Health,Children And Education Services,3265,Moonpig,05/03/2024,12061160,33.99,Flowers for Foster Carer,Misc Gen Merchandise - Def (5399)
Southend-on-Sea Borough Council,http://opendatacommunities.org/id/unitary-authority/southend,ED Children & Public Health,Children And Education Services,3471,Amazon* 204-8281979-63,05/03/2024,12061160,33.78,Goalie gloves for use at SYC youth groups. 2 pairs x sz 5. 2 pairs x sz 6.,Misc Gen Merchandise - Def (5399)
Southend-on-Sea Borough Council,http://opendatacommunities.org/id/unitary-authority/southend,ED Children & Public Health,Children And Education Services,3030,Wm Morrisons Store,05/03/2024,12061160,16.12,snack resources for family centres,Grocery Stores/Supermarkets (5411)
Southend-on-Sea Borough Council,http://opendatacommunities.org/id/unitary-authority/southend,ED Environment & Place,Cultural And Related Services,4200,Amazon* 206-5921929-97,05/03/2024,12061160,25.98,Tools for volunteer groups,Misc Gen Merchandise - Def (5399)
Southend-on-Sea Borough Council,http://opendatacommunities.org/id/unitary-authority/southend,ED Environment & Place,Cultural And Related Services,7515,Estuary Wholesale Ltd,06/03/2024,12061160,23.7,Flowers for the floristry orders.,Misc Speciality Retail (5999)
Southend-on-Sea Borough Council,http://opendatacommunities.org/id/unitary-authority/southend,ED Strategy & Change,Children And Education Services,3201,Wp*edge Training Ltd,06/03/2024,12061160,180,BIA Legal Update (Annual Refresher) 28 March 2024,Professional Services - Def (8999)
Southend-on-Sea Borough Council,http://opendatacommunities.org/id/unitary-authority/southend,ED Environment & Place,Cultural And Related Services,4200,Lidl Gb Canvey Island,06/03/2024,12061160,4.99,Food and drink for volunteer and tools group,Grocery Stores/Supermarkets (5411)
Southend-on-Sea Borough Council,http://opendatacommunities.org/id/unitary-authority/southend,ED Environment & Place,Cultural And Related Services,4200,Lidl Gb Canvey Island,06/03/2024,12061160,3.48,Food and drink for volunteer and tools group,Grocery Stores/Supermarkets (5411)
Southend-on-Sea Borough Council,http://opendatacommunities.org/id/unitary-authority/southend,ED Environment & Place,Cultural And Related Services,4200,Leigh Lock And Safe Co Lt,06/03/2024,12061160,42,Keys cut for Chalkwell office and Shoebury Park Pavilion,Business Services - Default (7399)
Southend-on-Sea Borough Council,http://opendatacommunities.org/id/unitary-authority/southend,ED Adults & Communities,Cultural And Related Services,4256,P Leigh On Sea To,06/03/2024,12061160,28.1,Train Travel to London for Arts Council workshop,Passenger Railways (4112)
Southend-on-Sea Borough Council,http://opendatacommunities.org/id/unitary-authority/southend,ED Adults & Communities,Cultural And Related Services,4015,Hobbycraft Southend,06/03/2024,12061160,5,Materials for object conservation,Artist/Craft Shops (5970)
Southend-on-Sea Borough Council,http://opendatacommunities.org/id/unitary-authority/southend,ED Adults & Communities,Cultural And Related Services,4020,Dulux Decorator Centre,06/03/2024,12061160,180.67,Paint for the Romans exhibition.,Paint (5198)
Southend-on-Sea Borough Council,http://opendatacommunities.org/id/unitary-authority/southend,ED Children & Public Health,Children And Education Services,3396,McDonalds 859,06/03/2024,12061160,4.99,breakfast after young person made a victim statement (LR),Fast Food Restaurants (5814)
Southend-on-Sea Borough Council,http://opendatacommunities.org/id/unitary-authority/southend,ED Children & Public Health,Children And Education Services,3105,Wh Smith Southend,06/03/2024,12061160,2.5,1 pack of white tac,News Dealers/Newsstands (5994)
Southend-on-Sea Borough Council,http://opendatacommunities.org/id/unitary-authority/southend,ED Adults & Communities,Cultural And Related Services,4055,Www.Cassart.Co.Uk,06/03/2024,12061160,30.95,Spray Paint,Artist/Craft Shops (5970)
Southend-on-Sea Borough Council,http://opendatacommunities.org/id/unitary-authority/southend,ED Adults & Communities,Cultural And Related Services,4055,Travis Perkins,06/03/2024,12061160,49.2,Materials REDACTED PERSONAL DATA,Lumber/Build. Supply Stores (5211)
Southend-on-Sea Borough Council,http://opendatacommunities.org/id/unitary-authority/southend,ED Adults & Communities,Cultural And Related Services,4055,The Metal Store,06/03/2024,12061160,90,Scaff poles REDACTED PERSONAL DATA,Hardware Equipment/Supplies (5072)
Southend-on-Sea Borough Council,http://opendatacommunities.org/id/unitary-authority/southend,ED Environment & Place,Highways And Transport Services,5021,Greater Anglia T/o,06/03/2024,12061160,36.5,Train travel to London - please code to C11147.Could not link Public Transport Account Coode to CC *,Passenger Railways (4112)
Southend-on-Sea Borough Council,http://opendatacommunities.org/id/unitary-authority/southend,ED Children & Public Health,Public Health,7713,Inst.Ofhealthvisiting,06/03/2024,12061160,61,Attendance at iHV SEND conference,Charitable/Soc Service Orgs (8398)
Southend-on-Sea Borough Council,http://opendatacommunities.org/id/unitary-authority/southend,ED Finance & Resources,Central Services to the Public,7110,In Line Filters,06/03/2024,12061160,44.36,Oil filters for sprinkler engines,Misc Auto Dealers - Default (5599)
Southend-on-Sea Borough Council,http://opendatacommunities.org/id/unitary-authority/southend,ED Adults & Communities,Cultural And Related Services,4055,Europa Industries,06/03/2024,12061160,32.16,Cardboard packaging for S for Southend deinstall.,Non-Durable Goods - Default (5199)
Southend-on-Sea Borough Council,http://opendatacommunities.org/id/unitary-authority/southend,ED Children & Public Health,Central Services to the Public,1035,Nottingham Venues Limited,06/03/2024,12061160,136,Hotel room for university day in Nottingham for AL's professional qualification,Lodging/Hotels/Motels/Resorts (7011)
Southend-on-Sea Borough Council,http://opendatacommunities.org/id/unitary-authority/southend,ED Environment & Place,Cultural And Related Services,7510,Leigh Lock And Safe Co Lt,06/03/2024,12061160,33.6,Keys for Nursery for additional security,Business Services - Default (7399)
Southend-on-Sea Borough Council,http://opendatacommunities.org/id/unitary-authority/southend,ED Children & Public Health,Children And Education Services,3396,Tesco Stores 5241,06/03/2024,12061160,9.05,Flowers for young person to give to parent for mothers day to say thank you for all the support she *,Grocery Stores/Supermarkets (5411)
Southend-on-Sea Borough Council,http://opendatacommunities.org/id/unitary-authority/southend,ED Adults & Communities,Cultural And Related Services,4261,Amznmktplace,06/03/2024,12061160,35,Book not available through normal suppliers,Misc Speciality Retail (5999)
Southend-on-Sea Borough Council,http://opendatacommunities.org/id/unitary-authority/southend,ED Adults & Communities,Cultural And Related Services,4120,Tesco Pfs 3236,06/03/2024,12061160,6.3,For use on the Pier,Service Stations (5541)
Southend-on-Sea Borough Council,http://opendatacommunities.org/id/unitary-authority/southend,ED Adults & Communities,Cultural And Related Services,4120,The Range,06/03/2024,12061160,8.18,For use on the Pier,Misc Home Furnishing (5719)
Southend-on-Sea Borough Council,http://opendatacommunities.org/id/unitary-authority/southend,ED Adults & Communities,Cultural And Related Services,4120,Tesco Stores 5178,06/03/2024,12061160,12,For use on the Pier,Grocery Stores/Supermarkets (5411)
Southend-on-Sea Borough Council,http://opendatacommunities.org/id/unitary-authority/southend,ED Environment & Place,Cultural And Related Services,4200,Screwfix Dir Ltd,07/03/2024,12061160,29.98,Tools for volunteer groups,Lumber/Build. Supply Stores (5211)
Southend-on-Sea Borough Council,http://opendatacommunities.org/id/unitary-authority/southend,ED Environment & Place,Cultural And Related Services,4200,Toolstation Ltd,07/03/2024,12061160,53.94,Tools for volunteer groups,Lumber/Build. Supply Stores (5211)
Southend-on-Sea Borough Council,http://opendatacommunities.org/id/unitary-authority/southend,ED Environment & Place,Cultural And Related Services,4200,B & Q 1372,07/03/2024,12061160,77,Tools for Volunteer Groups,Home Supply Warehouse Stores (5200)
Southend-on-Sea Borough Council,http://opendatacommunities.org/id/unitary-authority/southend,Department of the Chief Executive,Cultural And Related Services,7111,Thomson Reuters UK Ltd,07/03/2024,12061160,105.6,JCT MW2016 CONTRACT FOR PRJ 1827,Professional Services - Def (8999)
Southend-on-Sea Borough Council,http://opendatacommunities.org/id/unitary-authority/southend,ED Adults & Communities,Cultural And Related Services,4015,Greater Anglia T/o,07/03/2024,12061160,61.65,Rail travel for museum team staff attending Nautical Archaeological Society London Shipwreck event.,Passenger Railways (4112)
Southend-on-Sea Borough Council,http://opendatacommunities.org/id/unitary-authority/southend,ED Adults & Communities,Cultural And Related Services,4015,Ga Rayleigh Station,07/03/2024,12061160,5.2,Train station parking for save the London event in London hosted by DP world - invited to show objec *,"Parking Lots, Meters, Garages (7523)"
Southend-on-Sea Borough Council,http://opendatacommunities.org/id/unitary-authority/southend,ED Adults & Communities,Cultural And Related Services,4015,Greater Anglia,07/03/2024,12061160,34.1,Train travel to London for the London Shipwreck event - hosted by DP word. Invited to bring objects *,Passenger Railways (4112)
Southend-on-Sea Borough Council,http://opendatacommunities.org/id/unitary-authority/southend,ED Finance & Resources,Central Services to the Public,7110,Www.Argos.Co.Uk,07/03/2024,12061160,50.95,Purchase of lap top trolley for REDACTED PERSONAL DATA,Department Stores (5311)
Southend-on-Sea Borough Council,http://opendatacommunities.org/id/unitary-authority/southend,ED Children & Public Health,Children And Education Services,3455,Idiversity Consulting Lim,07/03/2024,12061160,1200,Sonia is the Team Manager of the adoption team and following an assessment was able to purchase item *,Schools - Default (8299)
Southend-on-Sea Borough Council,http://opendatacommunities.org/id/unitary-authority/southend,ED Children & Public Health,Children And Education Services,3455,Www.Connevans.Com,07/03/2024,12061160,4020,Sonia is the Team Manager of the adoption team and following an assessment was able to purchase item *,Misc Speciality Retail (5999)
Southend-on-Sea Borough Council,http://opendatacommunities.org/id/unitary-authority/southend,ED Children & Public Health,Children And Education Services,3396,McDonalds 1217,07/03/2024,12061160,5.09,MG looked after visit- lunch.,Fast Food Restaurants (5814)
Southend-on-Sea Borough Council,http://opendatacommunities.org/id/unitary-authority/southend,ED Children & Public Health,Children And Education Services,3030,Asda Superstore,07/03/2024,12061160,1.04,Resources for centres,Grocery Stores/Supermarkets (5411)
Southend-on-Sea Borough Council,http://opendatacommunities.org/id/unitary-authority/southend,ED Adults & Communities,Adult Social Care,1350,Www.Argos.Co.Uk,07/03/2024,12061160,35,Medication safe purchased for Adult to promote independence and secure medication,Department Stores (5311)
Southend-on-Sea Borough Council,http://opendatacommunities.org/id/unitary-authority/southend,ED Adults & Communities,Cultural And Related Services,4055,Cama-Gruppen Ab,07/03/2024,12061160,19.99,Curtain REDACTED PERSONAL DATA,Floor Covering Stores (5713)
Southend-on-Sea Borough Council,http://opendatacommunities.org/id/unitary-authority/southend,ED Adults & Communities,Cultural And Related Services,4055,Absoluteind,07/03/2024,12061160,95.52,Maz Materials,Industrial Supplies - Def (5085)
Southend-on-Sea Borough Council,http://opendatacommunities.org/id/unitary-authority/southend,ED Adults & Communities,Cultural And Related Services,4256,One For Fun Limited,07/03/2024,12061160,275.03,Retail Merchandise bought for libraries,Hobby/Toy/Game Stores (5945)
Southend-on-Sea Borough Council,http://opendatacommunities.org/id/unitary-authority/southend,ED Children & Public Health,Children And Education Services,3030,Amazon* East024,07/03/2024,12061160,36.57,sensory lights for eastwood family centre session,Misc Gen Merchandise - Def (5399)
Southend-on-Sea Borough Council,http://opendatacommunities.org/id/unitary-authority/southend,ED Children & Public Health,Children And Education Services,3030,John Preston&co,07/03/2024,12061160,456,SEN buggy ordered for homebased family support case,Lab/Med/Hospital Equipment (5047)
Southend-on-Sea Borough Council,http://opendatacommunities.org/id/unitary-authority/southend,ED Children & Public Health,Children And Education Services,3471,Lidl Gb Southend,07/03/2024,12061160,5.94,food for SYC cafe,Grocery Stores/Supermarkets (5411)
Southend-on-Sea Borough Council,http://opendatacommunities.org/id/unitary-authority/southend,ED Children & Public Health,Children And Education Services,3471,Amznbusiness,07/03/2024,12061160,40.8,"DYNASONIC - (3rd Gen) Portable Bluetooth Speaker with Karaoke Modeand Microphone, FM Radio and USB *",Misc Speciality Retail (5999)
Southend-on-Sea Borough Council,http://opendatacommunities.org/id/unitary-authority/southend,ED Environment & Place,Central Services to the Public,7540,Essex Bearings,07/03/2024,12061160,89.82,This purchase is to supply transmission U.J. joints for use in the mower workshop.,Metal Service Centers (5051)
Southend-on-Sea Borough Council,http://opendatacommunities.org/id/unitary-authority/southend,ED Children & Public Health,Children And Education Services,3491,Riverside,07/03/2024,12061160,9.5,bus ticket for client,"Parking Lots, Meters, Garages (7523)"
Southend-on-Sea Borough Council,http://opendatacommunities.org/id/unitary-authority/southend,ED Adults & Communities,Cultural And Related Services,4030,Fairfields Farm Produc,07/03/2024,12061160,129.6,Crisps for sale Priory VC shop,Misc Food Stores - Default (5499)
Southend-on-Sea Borough Council,http://opendatacommunities.org/id/unitary-authority/southend,ED Children & Public Health,Children And Education Services,3471,Amazon* 204-9505256-82,07/03/2024,12061160,34.09,laptop risers x 6 bought for staff use follwing DSE assessments. 4 for SYC office and 2 for Cluny Hu *,Misc Gen Merchandise - Def (5399)
Southend-on-Sea Borough Council,http://opendatacommunities.org/id/unitary-authority/southend,ED Children & Public Health,Children And Education Services,3471,Amazon* 204-6651756-37,07/03/2024,12061160,65.82,"Keyboards and mouse set x 6 boight following DSE assessment for staff, for use at hotdesks. 4 for SY *",Misc Gen Merchandise - Def (5399)
Southend-on-Sea Borough Council,http://opendatacommunities.org/id/unitary-authority/southend,ED Children & Public Health,Children And Education Services,3471,Baker Ross,07/03/2024,12061160,459.81,"Resources for Easter HAF activity week, expenditure worked out at 6 per head. All costs funded by D *",Artist/Craft Shops (5970)
Southend-on-Sea Borough Council,http://opendatacommunities.org/id/unitary-authority/southend,ED Adults & Communities,Cultural And Related Services,4120,Amazon* 204-6301129-14,07/03/2024,12061160,28.67,For use on the Pier,Misc Gen Merchandise - Def (5399)
Southend-on-Sea Borough Council,http://opendatacommunities.org/id/unitary-authority/southend,ED Adults & Communities,Cultural And Related Services,4120,Amazon* 204-6253592-98,07/03/2024,12061160,98.16,For use on the Pier,Misc Gen Merchandise - Def (5399)
Southend-on-Sea Borough Council,http://opendatacommunities.org/id/unitary-authority/southend,ED Adults & Communities,Cultural And Related Services,4285,Amazon* 202-8829840-06,07/03/2024,12061160,17.99,toilet rolls for use by staff and customers at Kent Elms Library,Misc Gen Merchandise - Def (5399)
Southend-on-Sea Borough Council,http://opendatacommunities.org/id/unitary-authority/southend,ED Children & Public Health,Children And Education Services,3396,Bp Chelmsford S/stn,07/03/2024,12061160,0.99,Sim card for MG- looked after child.,Service Stations (5541)
Southend-on-Sea Borough Council,http://opendatacommunities.org/id/unitary-authority/southend,ED Environment & Place,Cultural And Related Services,7515,Sumup *estuary Wholesale,08/03/2024,12061160,56.88,Flowers for the floristry orders.,Misc Speciality Retail (5999)
Southend-on-Sea Borough Council,http://opendatacommunities.org/id/unitary-authority/southend,ED Adults & Communities,Cultural And Related Services,4025,Hm Hennes Mauritz UK L,08/03/2024,12061160,9.99,"Materials for interactive in Romans exhibition, Central Museum. Purchased online and H&M do not supp *",Family Clothing Stores (5651)
Southend-on-Sea Borough Council,http://opendatacommunities.org/id/unitary-authority/southend,ED Adults & Communities,Cultural And Related Services,4025,Simply Plastics Ltd,08/03/2024,12061160,64.44,"Materials for interactive in Romans exhibition, Central Museum",Industrial Supplies - Def (5085)
Southend-on-Sea Borough Council,http://opendatacommunities.org/id/unitary-authority/southend,ED Environment & Place,Central Services to the Public,7175,Dvla Duplicate V5c Mid,08/03/2024,12061160,25,V5 renewal for REDACTED PERSONAL DATA,Govt Serv - Default (9399)
Southend-on-Sea Borough Council,http://opendatacommunities.org/id/unitary-authority/southend,ED Environment & Place,Central Services to the Public,7175,Dvla Duplicate V5c Mid,08/03/2024,12061160,25,V5 renewal for REDACTED PERSONAL DATA,Govt Serv - Default (9399)
Southend-on-Sea Borough Council,http://opendatacommunities.org/id/unitary-authority/southend,ED Environment & Place,Central Services to the Public,7175,Dvla Duplicate V5c Mid,08/03/2024,12061160,25,V5 renewal for REDACTED PERSONAL DATA,Govt Serv - Default (9399)
Southend-on-Sea Borough Council,http://opendatacommunities.org/id/unitary-authority/southend,ED Environment & Place,Planning & Economy Services,5615,Ocean Beach,08/03/2024,12061160,18,Added on expenses for International woman day. teas and coffees on the day / ocean beach,Eating Places/Restaurants (5812)
Southend-on-Sea Borough Council,http://opendatacommunities.org/id/unitary-authority/southend,ED Environment & Place,Planning & Economy Services,5615,Www.Essexchambers.Co.U,08/03/2024,12061160,60,Networking for Chambers for BC and EM at Genting.,Business Services - Default (7399)
Southend-on-Sea Borough Council,http://opendatacommunities.org/id/unitary-authority/southend,ED Children & Public Health,Children And Education Services,3030,Home Bargains Southend,08/03/2024,12061160,2.48,Resources for Family Centre sessions,Misc Gen Merchandise - Def (5399)
Southend-on-Sea Borough Council,http://opendatacommunities.org/id/unitary-authority/southend,ED Adults & Communities,Adult Social Care,1231,Trainline,08/03/2024,12061160,33.79,Train to Frinton on Sea for out of county social care review,Passenger Railways (4112)
Southend-on-Sea Borough Council,http://opendatacommunities.org/id/unitary-authority/southend,ED Children & Public Health,Children And Education Services,3030,Amznmktplace,08/03/2024,12061160,33.95,baby massage oil for sessions in family centres,Misc Speciality Retail (5999)
Southend-on-Sea Borough Council,http://opendatacommunities.org/id/unitary-authority/southend,ED Children & Public Health,Children And Education Services,3396,McDonalds 1217,08/03/2024,12061160,2.29,Food purchased for young person working with Early Help and yjs - tm,Fast Food Restaurants (5814)
Southend-on-Sea Borough Council,http://opendatacommunities.org/id/unitary-authority/southend,ED Children & Public Health,Children And Education Services,3396,Greggs,08/03/2024,12061160,3.25,Food purchased for a young person open to AIPT EH - LM,Eating Places/Restaurants (5812)
Southend-on-Sea Borough Council,http://opendatacommunities.org/id/unitary-authority/southend,ED Adults & Communities,Cultural And Related Services,4025,B & Q 1372,08/03/2024,12061160,152.09,Materials for building the new roman Exhibition at central Museum.,Home Supply Warehouse Stores (5200)
Southend-on-Sea Borough Council,http://opendatacommunities.org/id/unitary-authority/southend,ED Adults & Communities,Cultural And Related Services,4055,Sainsburys S/mkts,08/03/2024,12061160,5.2,Milk for the gallery,Grocery Stores/Supermarkets (5411)
Southend-on-Sea Borough Council,http://opendatacommunities.org/id/unitary-authority/southend,ED Children & Public Health,Children And Education Services,3030,Amazon* Friar036,08/03/2024,12061160,9.98,emergency lighting spare keys for friars family centre,Misc Gen Merchandise - Def (5399)
Southend-on-Sea Borough Council,http://opendatacommunities.org/id/unitary-authority/southend,ED Finance & Resources,Central Services to the Public,7140,C.E.F. (Southend),08/03/2024,12061160,52.8,Lights for lower ground floor toilets for stock,Lumber/Build. Supply Stores (5211)
Southend-on-Sea Borough Council,http://opendatacommunities.org/id/unitary-authority/southend,ED Environment & Place,Highways And Transport Services,5210,Www.Southend.Gov.Uk,08/03/2024,12061160,33,Internal payment to pay Event Application fee for use of an event site for Vision Zero Days Apr24 t *,Computer Software Stores (5734)
Southend-on-Sea Borough Council,http://opendatacommunities.org/id/unitary-authority/southend,ED Adults & Communities,Cultural And Related Services,4015,Amazon* 204-3991551-44,08/03/2024,12061160,9.59,Wooden figures for community art exhibition,Misc Gen Merchandise - Def (5399)
Southend-on-Sea Borough Council,http://opendatacommunities.org/id/unitary-authority/southend,ED Adults & Communities,Cultural And Related Services,4015,Amazon* 204-2845533-50,08/03/2024,12061160,19.88,Oat milk for Priory cafe,Misc Gen Merchandise - Def (5399)
Southend-on-Sea Borough Council,http://opendatacommunities.org/id/unitary-authority/southend,ED Adults & Communities,Cultural And Related Services,4015,Amazon* 204-3991551-44,08/03/2024,12061160,47.95,Wooden figures for community art exhibition,Misc Gen Merchandise - Def (5399)
Southend-on-Sea Borough Council,http://opendatacommunities.org/id/unitary-authority/southend,ED Adults & Communities,Cultural And Related Services,4055,Amznmktplace,09/03/2024,12061160,14,REDACTED PERSONAL DATA Materials,Misc Speciality Retail (5999)
Southend-on-Sea Borough Council,http://opendatacommunities.org/id/unitary-authority/southend,ED Adults & Communities,Cultural And Related Services,4055,Amznmktplace,09/03/2024,12061160,74.06,REDACTED PERSONAL DATA Materials,Misc Speciality Retail (5999)
Southend-on-Sea Borough Council,http://opendatacommunities.org/id/unitary-authority/southend,ED Adults & Communities,Cultural And Related Services,4055,Amznmktplace,09/03/2024,12061160,77.98,Materials REDACTED PERSONAL DATA,Misc Speciality Retail (5999)
Southend-on-Sea Borough Council,http://opendatacommunities.org/id/unitary-authority/southend,ED Adults & Communities,Cultural And Related Services,4115,Ryman,09/03/2024,12061160,21,"Pencils, erasers etc. for paper chart work.",Stationery Stores (5943)
Southend-on-Sea Borough Council,http://opendatacommunities.org/id/unitary-authority/southend,ED Adults & Communities,Cultural And Related Services,4120,Amazon* 09032024rs,09/03/2024,12061160,109.58,2 way radios for use between Pier head staff and tenants.,Misc Gen Merchandise - Def (5399)
Southend-on-Sea Borough Council,http://opendatacommunities.org/id/unitary-authority/southend,ED Adults & Communities,Cultural And Related Services,4115,Treemarker,09/03/2024,12061160,138,"Aluminium, numbered tags for use on mooring locations East of the Pier.",Misc Gen Merchandise - Def (5399)
Southend-on-Sea Borough Council,http://opendatacommunities.org/id/unitary-authority/southend,ED Adults & Communities,Cultural And Related Services,4015,Org Sub Fee,09/03/2024,12061160,19,Eventbrite event publishing fee,Computer Software Stores (5734)
Southend-on-Sea Borough Council,http://opendatacommunities.org/id/unitary-authority/southend,ED Adults & Communities,Cultural And Related Services,4015,Amazon* 204-3991551-44,09/03/2024,12061160,105.49,Wooden figures for community art exhibition,Misc Gen Merchandise - Def (5399)
Southend-on-Sea Borough Council,http://opendatacommunities.org/id/unitary-authority/southend,ED Adults & Communities,Cultural And Related Services,4255,Asda Superstore,09/03/2024,12061160,4,WD40 for trolley and RFID bin - Health and Safety audit,Grocery Stores/Supermarkets (5411)
Southend-on-Sea Borough Council,http://opendatacommunities.org/id/unitary-authority/southend,ED Adults & Communities,Cultural And Related Services,4055,Intuit Ltd Mailchimp,10/03/2024,12061160,103.66,Mailchimp March subscription,Continuity/Subscription Mercht (5968)
Southend-on-Sea Borough Council,http://opendatacommunities.org/id/unitary-authority/southend,ED Children & Public Health,Children And Education Services,3030,Qr-Code-Generator.Com,10/03/2024,12061160,158.45,QR code generator subsciption,Computer Software Stores (5734)
Southend-on-Sea Borough Council,http://opendatacommunities.org/id/unitary-authority/southend,ED Adults & Communities,Cultural And Related Services,4030,Amazon* 204-8632413-19,08/03/2024,12061160,22.25,Soy milk for Priory VC cafe,Misc Gen Merchandise - Def (5399)
Southend-on-Sea Borough Council,http://opendatacommunities.org/id/unitary-authority/southend,ED Environment & Place,Cultural And Related Services,7515,Sjaak Van Der Vijver B,11/03/2024,12061160,123.89,Flowers for the floristry orders.,Florist Supplies/Nursery Stock (5193)
Southend-on-Sea Borough Council,http://opendatacommunities.org/id/unitary-authority/southend,ED Environment & Place,Cultural And Related Services,7515,Sjaak Van Der Vijver B,11/03/2024,12061160,275.94,Flowers for the floristry orders.,Florist Supplies/Nursery Stock (5193)
Southend-on-Sea Borough Council,http://opendatacommunities.org/id/unitary-authority/southend,ED Strategy & Change,Central Services to the Public,2045,123*reg Ltd,11/03/2024,12061160,28.78,Web domain renewal - southendlibrary and biz on sea,Computer Network/Info Svcs (4816)
Southend-on-Sea Borough Council,http://opendatacommunities.org/id/unitary-authority/southend,ED Finance & Resources,Central Services to the Public,2078,Greater Anglia Rail,11/03/2024,12061160,36.5,Train travel (Chelmsford to London Bridge) for Partners in Communities event on 13 March 2024,Passenger Railways (4112)
Southend-on-Sea Borough Council,http://opendatacommunities.org/id/unitary-authority/southend,ED Children & Public Health,Children And Education Services,3396,Starbucks Coffee,11/03/2024,12061160,5.25,Cold drink during CP visit.- direct work.,Fast Food Restaurants (5814)
Southend-on-Sea Borough Council,http://opendatacommunities.org/id/unitary-authority/southend,ED Children & Public Health,Children And Education Services,3030,Aldi Stores Ltd,11/03/2024,12061160,5.74,Fruit for snacks for sessions in family centres,Grocery Stores/Supermarkets (5411)
Southend-on-Sea Borough Council,http://opendatacommunities.org/id/unitary-authority/southend,ED Adults & Communities,Cultural And Related Services,4120,Amazon* 026-3293150-14,11/03/2024,12061160,82.08,Batteries for use on Pier & Foreshore.,Misc Gen Merchandise - Def (5399)
Southend-on-Sea Borough Council,http://opendatacommunities.org/id/unitary-authority/southend,ED Children & Public Health,Children And Education Services,3396,Kfc Progress Road,11/03/2024,12061160,3.38,Drinks purchased for young person open to AIPT Social Care - ED,Fast Food Restaurants (5814)
Southend-on-Sea Borough Council,http://opendatacommunities.org/id/unitary-authority/southend,ED Children & Public Health,Children And Education Services,3396,Starbucks Coffee,11/03/2024,12061160,4.8,Drink purchased for a young person open to Social Care - SH,Fast Food Restaurants (5814)
Southend-on-Sea Borough Council,http://opendatacommunities.org/id/unitary-authority/southend,ED Children & Public Health,Public Health,7677,Tesco Stores 3177,11/03/2024,12061160,7.49,Snacks to support delivery of Health4Life weight management programme,Grocery Stores/Supermarkets (5411)
Southend-on-Sea Borough Council,http://opendatacommunities.org/id/unitary-authority/southend,ED Adults & Communities,Cultural And Related Services,4055,Southend Timber,11/03/2024,12061160,255.01,Timber for the REDACTED PERSONAL DATA exhibition,Lumber/Build. Supply Stores (5211)
Southend-on-Sea Borough Council,http://opendatacommunities.org/id/unitary-authority/southend,ED Children & Public Health,Children And Education Services,3030,Amazon* Crfc034,11/03/2024,12061160,20.89,bulk milk buy for cambridge road,Misc Gen Merchandise - Def (5399)
Southend-on-Sea Borough Council,http://opendatacommunities.org/id/unitary-authority/southend,ED Environment & Place,Environmental And Regulatory Services,4505,Amazon* 203-2258751-94,11/03/2024,12061160,18.74,radar key for disabled toilet,Misc Gen Merchandise - Def (5399)
Southend-on-Sea Borough Council,http://opendatacommunities.org/id/unitary-authority/southend,ED Adults & Communities,Cultural And Related Services,4055,Dulux Decorator Centre,11/03/2024,12061160,285.7,Dulux Paint for install - Diamond Matt Grey 5L,Paint (5198)
Southend-on-Sea Borough Council,http://opendatacommunities.org/id/unitary-authority/southend,ED Adults & Communities,Cultural And Related Services,4055,Dulux Decorator Centre,11/03/2024,12061160,288.8,Dulux Paint for Exhibition Install - Diamond White Paint 10L,Paint (5198)
Southend-on-Sea Borough Council,http://opendatacommunities.org/id/unitary-authority/southend,ED Adults & Communities,Cultural And Related Services,4055,Uk Educational Furniture,11/03/2024,12061160,322.56,F1 Plastic Stacking Chair With Arms x 4 - Exhibition 'Principal Boy',Furniture/Equip Stores (5712)
Southend-on-Sea Borough Council,http://opendatacommunities.org/id/unitary-authority/southend,ED Children & Public Health,Children And Education Services,3471,Lidl Gb,11/03/2024,12061160,54.53,food supplies for SYC cafe and youth work,Grocery Stores/Supermarkets (5411)
Southend-on-Sea Borough Council,http://opendatacommunities.org/id/unitary-authority/southend,ED Children & Public Health,Children And Education Services,3471,Booker Ltd - 38577234,11/03/2024,12061160,94.43,food and drink for syc cafe,Grocery Stores/Supermarkets (5411)
Southend-on-Sea Borough Council,http://opendatacommunities.org/id/unitary-authority/southend,ED Children & Public Health,Children And Education Services,3471,Booker Ltd - 38577234,11/03/2024,12061160,261.4,food and drink for syc cafe,Grocery Stores/Supermarkets (5411)
Southend-on-Sea Borough Council,http://opendatacommunities.org/id/unitary-authority/southend,ED Children & Public Health,Children And Education Services,3491,Travelodge Gb0000,11/03/2024,12061160,136,Travelodge hotel room booking - 2 x rooms for parents for contact.,Travelodge (3615)
Southend-on-Sea Borough Council,http://opendatacommunities.org/id/unitary-authority/southend,ED Environment & Place,Central Services to the Public,7540,Bell Tyre Centre,11/03/2024,12061160,87,This purchase is to repair & supply vehicle tyres required for the Parks department,Automotive Tire Stores (5532)
Southend-on-Sea Borough Council,http://opendatacommunities.org/id/unitary-authority/southend,ED Adults & Communities,Cultural And Related Services,4030,Booker Ltd - 38622734,11/03/2024,12061160,103.49,Food and drink supplies for Priory VC cafe,Grocery Stores/Supermarkets (5411)
Southend-on-Sea Borough Council,http://opendatacommunities.org/id/unitary-authority/southend,ED Adults & Communities,Cultural And Related Services,4030,Booker Ltd - 38622734,11/03/2024,12061160,82.04,Food and drink supplies for Priory VC cafe,Grocery Stores/Supermarkets (5411)
Southend-on-Sea Borough Council,http://opendatacommunities.org/id/unitary-authority/southend,ED Children & Public Health,Public Health,7713,Amazon* 202-5926022-44,11/03/2024,12061160,60.93,"Equipment purchase for the Children, Young People and Families Public Health Service",Misc Gen Merchandise - Def (5399)
Southend-on-Sea Borough Council,http://opendatacommunities.org/id/unitary-authority/southend,ED Adults & Communities,Cultural And Related Services,4261,Www.Latitudemaps.Co.Uk,11/03/2024,12061160,149.51,Ordnance survey maps brought from normal supplier,Book Stores (5942)
Southend-on-Sea Borough Council,http://opendatacommunities.org/id/unitary-authority/southend,ED Strategy & Change,Central Services to the Public,7130,Amazon* 203-1164521-44,11/03/2024,12061160,53.38,ID Badge Cards x 200.,Misc Gen Merchandise - Def (5399)
Southend-on-Sea Borough Council,http://opendatacommunities.org/id/unitary-authority/southend,ED Strategy & Change,Central Services to the Public,7130,Amazon* 203-9555893-90,12/03/2024,12061160,151.62,Monitor cables x 40.,Misc Gen Merchandise - Def (5399)
Southend-on-Sea Borough Council,http://opendatacommunities.org/id/unitary-authority/southend,ED Children & Public Health,Children And Education Services,3030,Asda Superstore,12/03/2024,12061160,5.45,Resources for Family Centre sessions,Grocery Stores/Supermarkets (5411)
Southend-on-Sea Borough Council,http://opendatacommunities.org/id/unitary-authority/southend,ED Adults & Communities,Cultural And Related Services,4055,Sp Medisave.Co.Uk,12/03/2024,12061160,6.53,REDACTED PERSONAL DATA Materials,Misc Gen Merchandise - Def (5399)
Southend-on-Sea Borough Council,http://opendatacommunities.org/id/unitary-authority/southend,ED Adults & Communities,Cultural And Related Services,4055,Amznmktplace,12/03/2024,12061160,14,Materials REDACTED PERSONAL DATA,Misc Speciality Retail (5999)
Southend-on-Sea Borough Council,http://opendatacommunities.org/id/unitary-authority/southend,ED Adults & Communities,Cultural And Related Services,4055,B&q Ltd,12/03/2024,12061160,22,Materials REDACTED PERSONAL DATA,Lumber/Build. Supply Stores (5211)
Southend-on-Sea Borough Council,http://opendatacommunities.org/id/unitary-authority/southend,ED Adults & Communities,Cultural And Related Services,4055,Shiply,12/03/2024,12061160,27,Transport Sofa REDACTED PERSONAL DATA,Motor Freight Carriers (4214)
Southend-on-Sea Borough Council,http://opendatacommunities.org/id/unitary-authority/southend,ED Adults & Communities,Cultural And Related Services,4055,Amazon* 205-7840237-13,12/03/2024,12061160,30.97,Flashing lights REDACTED PERSONAL DATA,Misc Gen Merchandise - Def (5399)
Southend-on-Sea Borough Council,http://opendatacommunities.org/id/unitary-authority/southend,ED Finance & Resources,Central Services to the Public,7096,Amazon* 204-7603471-11,12/03/2024,12061160,22.99,compatible cleaning kit for Magicard Rio Pro ID card printer which is used to print advantage cards.,Misc Gen Merchandise - Def (5399)
Southend-on-Sea Borough Council,http://opendatacommunities.org/id/unitary-authority/southend,ED Children & Public Health,Children And Education Services,3030,Ao Retail Limited,12/03/2024,12061160,269,Purchase of washing machine for Family Support family,Household Appliance Stores (5722)
Southend-on-Sea Borough Council,http://opendatacommunities.org/id/unitary-authority/southend,ED Adults & Communities,Cultural And Related Services,4256,Booker Ltd - 38577234,12/03/2024,12061160,64.69,Drinks to be sold in the Forum,Grocery Stores/Supermarkets (5411)
Southend-on-Sea Borough Council,http://opendatacommunities.org/id/unitary-authority/southend,ED Adults & Communities,Cultural And Related Services,4055,Ebay O*20-11293-76239,12/03/2024,12061160,289,Fee for a second hand sofa for 'Principal Boy' exhibition. This part of the installation of the work *,Department Stores (5311)
Southend-on-Sea Borough Council,http://opendatacommunities.org/id/unitary-authority/southend,ED Children & Public Health,Children And Education Services,3692,Essex County Counci Ec,12/03/2024,12061160,11,Birth certificate PH,Govt Serv - Default (9399)
Southend-on-Sea Borough Council,http://opendatacommunities.org/id/unitary-authority/southend,ED Children & Public Health,Children And Education Services,3030,Amazon* Ham024,12/03/2024,12061160,5.6,coffee for hamstel family centre,Misc Gen Merchandise - Def (5399)
Southend-on-Sea Borough Council,http://opendatacommunities.org/id/unitary-authority/southend,ED Children & Public Health,Children And Education Services,3030,Amazon* Crfc035,12/03/2024,12061160,11.99,bulk buy washing up liquid crfc and summercourt,Misc Gen Merchandise - Def (5399)
Southend-on-Sea Borough Council,http://opendatacommunities.org/id/unitary-authority/southend,ED Children & Public Health,Children And Education Services,3030,Amazon* Ham024,12/03/2024,12061160,28.98,bulk buy toilet rolls hamstel,Misc Gen Merchandise - Def (5399)
Southend-on-Sea Borough Council,http://opendatacommunities.org/id/unitary-authority/southend,ED Children & Public Health,Children And Education Services,3030,Amazon* Friar027,12/03/2024,12061160,37.98,bulk buy toilet rolls friars,Misc Gen Merchandise - Def (5399)
Southend-on-Sea Borough Council,http://opendatacommunities.org/id/unitary-authority/southend,ED Children & Public Health,Children And Education Services,3030,Amazon* Ham024,12/03/2024,12061160,47.44,paper towels bulk for hamstel fc,Misc Gen Merchandise - Def (5399)
Southend-on-Sea Borough Council,http://opendatacommunities.org/id/unitary-authority/southend,ED Children & Public Health,Children And Education Services,3030,Amazon* East025,12/03/2024,12061160,52.98,equipment for sensory play at eastwood fc,Misc Gen Merchandise - Def (5399)
Southend-on-Sea Borough Council,http://opendatacommunities.org/id/unitary-authority/southend,ED Children & Public Health,Children And Education Services,3030,Currys Online,12/03/2024,12061160,359,Cooker supplied to family who didn't have access to cooking facilities,Electronics Sales (5732)
Southend-on-Sea Borough Council,http://opendatacommunities.org/id/unitary-authority/southend,ED Strategy & Change,Children And Education Services,3201,Elevenlabs.Io,12/03/2024,12061160,4.03,Accessible voiceover tool for learning design,Computer Software Stores (5734)
Southend-on-Sea Borough Council,http://opendatacommunities.org/id/unitary-authority/southend,ED Adults & Communities,Cultural And Related Services,4015,Alamy.Com Limited,12/03/2024,12061160,18,use of image rights,Art Dealers & Galleries (5971)
Southend-on-Sea Borough Council,http://opendatacommunities.org/id/unitary-authority/southend,ED Children & Public Health,Children And Education Services,3030,Wm Morrisons Store,12/03/2024,12061160,7.76,snack and resources for family centres,Grocery Stores/Supermarkets (5411)
Southend-on-Sea Borough Council,http://opendatacommunities.org/id/unitary-authority/southend,ED Adults & Communities,Cultural And Related Services,4015,Autohalt Fs779,12/03/2024,12061160,20,Transport of supplies from traders to new roman exhibition at central museum.,Service Stations (5541)
Southend-on-Sea Borough Council,http://opendatacommunities.org/id/unitary-authority/southend,ED Environment & Place,Cultural And Related Services,4200,Lidl Gb Southend,13/03/2024,12061160,1.37,Food for volunteer groups,Grocery Stores/Supermarkets (5411)
Southend-on-Sea Borough Council,http://opendatacommunities.org/id/unitary-authority/southend,ED Environment & Place,Cultural And Related Services,4200,Aldi 57 776,13/03/2024,12061160,3.94,Food and drink for volunteer group,Grocery Stores/Supermarkets (5411)
Southend-on-Sea Borough Council,http://opendatacommunities.org/id/unitary-authority/southend,ED Environment & Place,Cultural And Related Services,4200,Aldi Stores Ltd,13/03/2024,12061160,7.98,Batteries for Landscape Team,Grocery Stores/Supermarkets (5411)
Southend-on-Sea Borough Council,http://opendatacommunities.org/id/unitary-authority/southend,ED Environment & Place,Cultural And Related Services,4200,Amazon* 204-1573900-21,13/03/2024,12061160,10.35,Equipment for Community Payback Scheme project day,Misc Gen Merchandise - Def (5399)
Southend-on-Sea Borough Council,http://opendatacommunities.org/id/unitary-authority/southend,ED Environment & Place,Cultural And Related Services,4200,B&m 341 - Southend,13/03/2024,12061160,14,Seeds for volunteer groups and stationary for Chalkwell Office,Misc Gen Merchandise - Def (5399)
Southend-on-Sea Borough Council,http://opendatacommunities.org/id/unitary-authority/southend,ED Adults & Communities,Cultural And Related Services,4025,Amazon* 202-3258895-62,13/03/2024,12061160,13.94,"Materials for children's interactive in Romans exhibition, Central Museum",Misc Gen Merchandise - Def (5399)
Southend-on-Sea Borough Council,http://opendatacommunities.org/id/unitary-authority/southend,ED Adults & Communities,Cultural And Related Services,4025,Amazon* 202-6405998-89,13/03/2024,12061160,15.75,"Equipment for children's interactives in Romans exhibition, Central Museum",Misc Gen Merchandise - Def (5399)
Southend-on-Sea Borough Council,http://opendatacommunities.org/id/unitary-authority/southend,ED Children & Public Health,Children And Education Services,3455,Www.Gordonmorris.Co.Uk,13/03/2024,12061160,1576.72,Specialist hearing equipment for SJ,Electronics Sales (5732)
Southend-on-Sea Borough Council,http://opendatacommunities.org/id/unitary-authority/southend,ED Children & Public Health,Children And Education Services,3265,Facebk J9tsx34tk2,13/03/2024,12061160,400,Targeted paid digital Facebook and Instagram advertising to raise awareness and drive prospective fo *,Advertising Services (7311)
Southend-on-Sea Borough Council,http://opendatacommunities.org/id/unitary-authority/southend,ED Environment & Place,Planning & Economy Services,5615,Www.Business-Buzz.Org,13/03/2024,12061160,12,Business buzz networking for BC - SPF,Computer Software Stores (5734)
Southend-on-Sea Borough Council,http://opendatacommunities.org/id/unitary-authority/southend,ED Children & Public Health,Children And Education Services,3396,Southend On Sea Boroug,13/03/2024,12061160,1.2,Parking for young person appointment in Southend.,"Parking Lots, Meters, Garages (7523)"
Southend-on-Sea Borough Council,http://opendatacommunities.org/id/unitary-authority/southend,ED Adults & Communities,Cultural And Related Services,4055,B&q Marketplace,13/03/2024,12061160,4.75,MM Materials. Please note this order is comprised of three receipts which I have attached here. I sp *,Lumber/Build. Supply Stores (5211)
Southend-on-Sea Borough Council,http://opendatacommunities.org/id/unitary-authority/southend,ED Adults & Communities,Cultural And Related Services,4055,B&q Marketplace,13/03/2024,12061160,6,MM Materials. Please note this order is comprised of three receipts which I have attached here. I sp *,Lumber/Build. Supply Stores (5211)
Southend-on-Sea Borough Council,http://opendatacommunities.org/id/unitary-authority/southend,ED Adults & Communities,Cultural And Related Services,4055,B&q Marketplace,13/03/2024,12061160,26.48,MM Materials. Please note this order is comprised of three receipts which I have attached here. I sp *,Lumber/Build. Supply Stores (5211)
Southend-on-Sea Borough Council,http://opendatacommunities.org/id/unitary-authority/southend,ED Adults & Communities,Cultural And Related Services,4025,B & Q 1372,13/03/2024,12061160,281.97,Wood supplies for the New roman exhibition build at Central Museum.,Home Supply Warehouse Stores (5200)
Southend-on-Sea Borough Council,http://opendatacommunities.org/id/unitary-authority/southend,ED Children & Public Health,Children And Education Services,3030,Amazon* Blen038,13/03/2024,12061160,38.88,bulk buy A4 paper Blenheim/eastwood/prince,Misc Gen Merchandise - Def (5399)
Southend-on-Sea Borough Council,http://opendatacommunities.org/id/unitary-authority/southend,ED Children & Public Health,Children And Education Services,3030,Amazon* Crfc036,13/03/2024,12061160,38.88,bulk paper A4 cambridge Road,Misc Gen Merchandise - Def (5399)
Southend-on-Sea Borough Council,http://opendatacommunities.org/id/unitary-authority/southend,ED Children & Public Health,Children And Education Services,3183,Amazon* 205-7535188-75,13/03/2024,12061160,5.99,SEND Local Offer Events,Misc Gen Merchandise - Def (5399)
Southend-on-Sea Borough Council,http://opendatacommunities.org/id/unitary-authority/southend,ED Children & Public Health,Children And Education Services,3396,Starbucks Coffee,13/03/2024,12061160,5.25,Initial meeting with young person supporting with collecting after school,Fast Food Restaurants (5814)
Southend-on-Sea Borough Council,http://opendatacommunities.org/id/unitary-authority/southend,ED Children & Public Health,Children And Education Services,3396,Starbucks Coffee,13/03/2024,12061160,3.79,Initial meeting with young person supporting with collecting after school,Fast Food Restaurants (5814)
Southend-on-Sea Borough Council,http://opendatacommunities.org/id/unitary-authority/southend,ED Children & Public Health,Children And Education Services,3455,Trainline,13/03/2024,12061160,160.89,This needs to be allocated to a different cost centre 3220 Plans & Reviews.Train ticket Romford to *,Passenger Railways (4112)
Southend-on-Sea Borough Council,http://opendatacommunities.org/id/unitary-authority/southend,ED Children & Public Health,Children And Education Services,3445,Amazon* 026-4230155-23,13/03/2024,12061160,10.45,Bedding (quilt cover) provided for a child without adequate sleeping space due to domestic abuse,Misc Gen Merchandise - Def (5399)
Southend-on-Sea Borough Council,http://opendatacommunities.org/id/unitary-authority/southend,ED Children & Public Health,Children And Education Services,3445,Amazon* 026-6465107-19,13/03/2024,12061160,12.99,Purchase of a cuddly toy for a child who has moved due to domestic abuse and this was to assist in s *,Misc Gen Merchandise - Def (5399)
Southend-on-Sea Borough Council,http://opendatacommunities.org/id/unitary-authority/southend,ED Children & Public Health,Children And Education Services,3445,Amazon* 026-6465107-19,13/03/2024,12061160,4.99,Purchase of a cuddly toy for a child who has moved due to domestic abuse and this was to assist in s *,Misc Gen Merchandise - Def (5399)
Southend-on-Sea Borough Council,http://opendatacommunities.org/id/unitary-authority/southend,ED Children & Public Health,Children And Education Services,3445,Amazon* 026-6009400-25,13/03/2024,12061160,26.5,Bedding purchased for a child without adequate sleeping space due to domestic abuse.,Misc Gen Merchandise - Def (5399)
Southend-on-Sea Borough Council,http://opendatacommunities.org/id/unitary-authority/southend,ED Children & Public Health,Children And Education Services,3445,Amazon* 026-0893271-61,13/03/2024,12061160,129.98,Bed purchased for a child who did not have a bed or adequate sleep space due to domestic abuse .,Misc Gen Merchandise - Def (5399)
Southend-on-Sea Borough Council,http://opendatacommunities.org/id/unitary-authority/southend,ED Adults & Communities,Cultural And Related Services,4020,Amazon* 026-9717218-65,14/03/2024,12061160,14.75,O rings for glass shelve hanging system inside museum display cases. - To replace perished rubber O *,Misc Gen Merchandise - Def (5399)
Southend-on-Sea Borough Council,http://opendatacommunities.org/id/unitary-authority/southend,ED Adults & Communities,Cultural And Related Services,4020,Aa Labels,14/03/2024,12061160,61.79,Vinyl labels for the wall in exhibitions. I have contacted for a receipt that includes Southend city *,Misc Speciality Retail (5999)
Southend-on-Sea Borough Council,http://opendatacommunities.org/id/unitary-authority/southend,ED Children & Public Health,Children And Education Services,3265,Facebk *daqbt38tk2,14/03/2024,12061160,13.4,Targeted paid digital Facebook and Instagram advertising to raise awareness and drive prospective fo *,Advertising Services (7311)
Southend-on-Sea Borough Council,http://opendatacommunities.org/id/unitary-authority/southend,ED Children & Public Health,Children And Education Services,3436,Starbucks Coffee,14/03/2024,12061160,5.25,Drink for YP during appointment,Fast Food Restaurants (5814)
Southend-on-Sea Borough Council,http://opendatacommunities.org/id/unitary-authority/southend,ED Adults & Communities,Cultural And Related Services,4055,Www.Argos.Co.Uk,14/03/2024,12061160,41.25,Curtain for MM exhibition,Department Stores (5311)
Southend-on-Sea Borough Council,http://opendatacommunities.org/id/unitary-authority/southend,ED Adults & Communities,Adult Social Care,1231,Www.Wightlink.Co.Uk,14/03/2024,12061160,113.75,Ferry to isle of Wight out of county Adults Social care review,Local Commuter Transport (4111)
Southend-on-Sea Borough Council,http://opendatacommunities.org/id/unitary-authority/southend,ED Adults & Communities,Cultural And Related Services,4025,The Range,14/03/2024,12061160,17.96,Items for the New Roman Exhibition build.,Misc Home Furnishing (5719)
Southend-on-Sea Borough Council,http://opendatacommunities.org/id/unitary-authority/southend,ED Adults & Communities,Cultural And Related Services,4055,Www.Argos.Co.Uk,14/03/2024,12061160,180,Wireless headphones for use as part of the MM exhibition,Department Stores (5311)
Southend-on-Sea Borough Council,http://opendatacommunities.org/id/unitary-authority/southend,ED Children & Public Health,Children And Education Services,3030,Amazon* Friar037,14/03/2024,12061160,6.98,pens stationery friars,Misc Gen Merchandise - Def (5399)
Southend-on-Sea Borough Council,http://opendatacommunities.org/id/unitary-authority/southend,ED Children & Public Health,Children And Education Services,3030,Amazon* Friar037,14/03/2024,12061160,9.95,stationery pens friars,Misc Gen Merchandise - Def (5399)
Southend-on-Sea Borough Council,http://opendatacommunities.org/id/unitary-authority/southend,ED Children & Public Health,Children And Education Services,3030,Amazon* Blen038,14/03/2024,12061160,37.72,teabags and milk bulk buy for blenheim,Misc Gen Merchandise - Def (5399)
Southend-on-Sea Borough Council,http://opendatacommunities.org/id/unitary-authority/southend,ED Children & Public Health,Children And Education Services,3183,Amazon* 205-7323200-34,14/03/2024,12061160,15.37,SEND Local Offer Events,Misc Gen Merchandise - Def (5399)
Southend-on-Sea Borough Council,http://opendatacommunities.org/id/unitary-authority/southend,ED Children & Public Health,Children And Education Services,3183,Amazon* 205-7535188-75,14/03/2024,12061160,29.46,SEND Local Offer Events,Misc Gen Merchandise - Def (5399)
Southend-on-Sea Borough Council,http://opendatacommunities.org/id/unitary-authority/southend,ED Children & Public Health,Children And Education Services,3471,Lidl Gb Southend,14/03/2024,12061160,2.36,food for syc cafe,Grocery Stores/Supermarkets (5411)
Southend-on-Sea Borough Council,http://opendatacommunities.org/id/unitary-authority/southend,ED Environment & Place,Central Services to the Public,7540,Power Precision And Fa,14/03/2024,12061160,45.6,This purchase is to supply cricket roller parts required for use in the parts mower workshop.,Misc Personal Serv - Def (7299)
Southend-on-Sea Borough Council,http://opendatacommunities.org/id/unitary-authority/southend,ED Children & Public Health,Children And Education Services,3471,Amznmktplace,14/03/2024,12061160,11.44,Year wall planner for office at SYC.,Misc Speciality Retail (5999)
Southend-on-Sea Borough Council,http://opendatacommunities.org/id/unitary-authority/southend,ED Children & Public Health,Children And Education Services,3471,Amznmktplace,14/03/2024,12061160,12.49,Mini basketball hoop for use at Woodgrange Youth groysp ages 8-14yrs.,Misc Speciality Retail (5999)
Southend-on-Sea Borough Council,http://opendatacommunities.org/id/unitary-authority/southend,ED Children & Public Health,Children And Education Services,3183,Amzn Mktp Uk,15/03/2024,12061160,12.73,SEND Local Offer Events,Book Stores (5942)
Southend-on-Sea Borough Council,http://opendatacommunities.org/id/unitary-authority/southend,ED Environment & Place,Cultural And Related Services,4200,Amazon* 204-1088012-13,15/03/2024,12061160,6.98,Phone case for Parks Management,Misc Gen Merchandise - Def (5399)
Southend-on-Sea Borough Council,http://opendatacommunities.org/id/unitary-authority/southend,ED Environment & Place,Cultural And Related Services,4200,Leigh Lock And Safe Co Lt,15/03/2024,12061160,12,Keys cut for Chalkwell Park Office,Business Services - Default (7399)
Southend-on-Sea Borough Council,http://opendatacommunities.org/id/unitary-authority/southend,ED Environment & Place,Cultural And Related Services,4200,Amznmktplace,15/03/2024,12061160,20.07,Equipment for allotment group,Misc Speciality Retail (5999)
Southend-on-Sea Borough Council,http://opendatacommunities.org/id/unitary-authority/southend,ED Environment & Place,Cultural And Related Services,4200,Amazon* 204-1344744-91,15/03/2024,12061160,25.49,Gloves for Park Warden,Misc Gen Merchandise - Def (5399)
Southend-on-Sea Borough Council,http://opendatacommunities.org/id/unitary-authority/southend,ED Environment & Place,Cultural And Related Services,4200,Lemon Fencing Limited,15/03/2024,12061160,-198,Credit Voucher Lemon Fencing Limited,Lumber/Build. Supply Stores (5211)
Southend-on-Sea Borough Council,http://opendatacommunities.org/id/unitary-authority/southend,ED Environment & Place,Cultural And Related Services,4200,Lemon Fencing Limited,15/03/2024,12061160,220,Equipment for Landscape Team,Lumber/Build. Supply Stores (5211)
Southend-on-Sea Borough Council,http://opendatacommunities.org/id/unitary-authority/southend,ED Adults & Communities,Cultural And Related Services,4025,Hobbycraft Trading Limite,15/03/2024,12061160,11,"Materials for Romans exhibition interactives, Central Museum",Artist/Craft Shops (5970)
Southend-on-Sea Borough Council,http://opendatacommunities.org/id/unitary-authority/southend,ED Children & Public Health,Children And Education Services,3030,Asda Superstore,15/03/2024,12061160,12.58,Resources for Family Centre sessions,Grocery Stores/Supermarkets (5411)
Southend-on-Sea Borough Council,http://opendatacommunities.org/id/unitary-authority/southend,ED Adults & Communities,Cultural And Related Services,4120,Inform Printed Solutio,15/03/2024,12061160,264,Promotional tote bags for conference.,Mens/Womens Clothing Stores (5691)
Southend-on-Sea Borough Council,http://opendatacommunities.org/id/unitary-authority/southend,ED Children & Public Health,Children And Education Services,3396,Starbucks Coffee,15/03/2024,12061160,4.8,Drink purchased for parent of young person open to social care - HC,Fast Food Restaurants (5814)
Southend-on-Sea Borough Council,http://opendatacommunities.org/id/unitary-authority/southend,ED Adults & Communities,Cultural And Related Services,4025,The Range,15/03/2024,12061160,5.99,Glue for the For the New Roman exhibition at Central Museum,Misc Home Furnishing (5719)
Southend-on-Sea Borough Council,http://opendatacommunities.org/id/unitary-authority/southend,ED Adults & Communities,Cultural And Related Services,4055,Www.Majestic.Co.Uk,15/03/2024,12061160,214.06,Majestic Wine order for drinks for MM exhibition opening,Pkg Stores/Beer/Wine/Liquor (5921)
Southend-on-Sea Borough Council,http://opendatacommunities.org/id/unitary-authority/southend,ED Adults & Communities,Cultural And Related Services,4055,Baker Ross,15/03/2024,12061160,53,Aprons for contemporary elders in march,Artist/Craft Shops (5970)
Southend-on-Sea Borough Council,http://opendatacommunities.org/id/unitary-authority/southend,ED Adults & Communities,Cultural And Related Services,4055,Gls Educational Su,15/03/2024,12061160,25.68,Materials for march contemporary elders and restock of paper for general learning programme.,Colleges/Univ/Jc/Profession (8220)
Southend-on-Sea Borough Council,http://opendatacommunities.org/id/unitary-authority/southend,ED Adults & Communities,Cultural And Related Services,4055,Gls Educational Su,15/03/2024,12061160,87.41,Materials for march contemporary elders and restock of paper for general learning programme.,Colleges/Univ/Jc/Profession (8220)
Southend-on-Sea Borough Council,http://opendatacommunities.org/id/unitary-authority/southend,ED Children & Public Health,Children And Education Services,3030,Amazon* Friar037,15/03/2024,12061160,27.95,bulk buy coffee friars,Misc Gen Merchandise - Def (5399)
Southend-on-Sea Borough Council,http://opendatacommunities.org/id/unitary-authority/southend,ED Environment & Place,Environmental And Regulatory Services,4505,Amazon* 203-3633409-67,15/03/2024,12061160,43.1,photo frames for the crematorium waiting rooms,Misc Gen Merchandise - Def (5399)
Southend-on-Sea Borough Council,http://opendatacommunities.org/id/unitary-authority/southend,ED Adults & Communities,Cultural And Related Services,4055,"Laurence Mathews Art, Cra",15/03/2024,12061160,10.75,Orange Spray paint x 1 - MM Exhibition,Artist/Craft Shops (5970)
Southend-on-Sea Borough Council,http://opendatacommunities.org/id/unitary-authority/southend,ED Adults & Communities,Cultural And Related Services,4055,"Laurence Mathews Art, Cra",15/03/2024,12061160,21.5,Orange Spray Paint x 2 - MM Exhibition,Artist/Craft Shops (5970)
Southend-on-Sea Borough Council,http://opendatacommunities.org/id/unitary-authority/southend,ED Finance & Resources,Central Services to the Public,2190,Studio 2000 Photog,15/03/2024,12061160,252.56,photos for Citizens,Camera & Photo Supply Store (5946)
Southend-on-Sea Borough Council,http://opendatacommunities.org/id/unitary-authority/southend,ED Adults & Communities,Cultural And Related Services,4115,Amazon* 14022024rs,15/03/2024,12061160,36.95,seizing wire for mooring tags,Misc Gen Merchandise - Def (5399)
Southend-on-Sea Borough Council,http://opendatacommunities.org/id/unitary-authority/southend,ED Children & Public Health,Children And Education Services,3396,McDonalds 16,15/03/2024,12061160,5.21,Food to discuss Universal credit as no source of income and CAMHS appointment,Fast Food Restaurants (5814)
Southend-on-Sea Borough Council,http://opendatacommunities.org/id/unitary-authority/southend,ED Adults & Communities,Cultural And Related Services,4015,Amznmktplace,15/03/2024,12061160,6.5,Ant powder,Misc Speciality Retail (5999)
Southend-on-Sea Borough Council,http://opendatacommunities.org/id/unitary-authority/southend,ED Adults & Communities,Cultural And Related Services,4005,Na,16/03/2024,12061160,5.5,Duplicate key for cash box - only one key currently existed.,Hardware Stores (5251)
Southend-on-Sea Borough Council,http://opendatacommunities.org/id/unitary-authority/southend,ED Adults & Communities,Cultural And Related Services,4055,123*reg Ltd,17/03/2024,12061160,14.39,Radical Essex Domain Renewal,Computer Network/Info Svcs (4816)
Southend-on-Sea Borough Council,http://opendatacommunities.org/id/unitary-authority/southend,ED Children & Public Health,,7720,Etsy.Com*woolyknitsandcro,05/03/2024,12061160,-8.51,Credit Voucher Etsy.Com*woolyknitsandcroPart refund of international postage for Etsy purchase of L *,Misc Gen Merchandise - Def (5399)
Southend-on-Sea Borough Council,http://opendatacommunities.org/id/unitary-authority/southend,ED Adults & Communities,Cultural And Related Services,4290,Amazon* 202-4286590-90,18/03/2024,12061160,17.99,toilet rolls for use by staff and customers at Leigh Library,Misc Gen Merchandise - Def (5399)
Southend-on-Sea Borough Council,http://opendatacommunities.org/id/unitary-authority/southend,ED Children & Public Health,Children And Education Services,3030,Premier,18/03/2024,12061160,3.87,Resources for centres,Grocery Stores/Supermarkets (5411)
Southend-on-Sea Borough Council,http://opendatacommunities.org/id/unitary-authority/southend,ED Children & Public Health,Children And Education Services,3030,Asda Superstore,18/03/2024,12061160,7.09,Easter resources for centres,Grocery Stores/Supermarkets (5411)
Southend-on-Sea Borough Council,http://opendatacommunities.org/id/unitary-authority/southend,ED Children & Public Health,Children And Education Services,3030,Asda Superstore,18/03/2024,12061160,26.3,Easter resources for centres,Grocery Stores/Supermarkets (5411)
Southend-on-Sea Borough Council,http://opendatacommunities.org/id/unitary-authority/southend,ED Adults & Communities,Cultural And Related Services,4055,Amazon* 205-6252504-26,18/03/2024,12061160,22.77,Wallpaper MM exhibition,Misc Gen Merchandise - Def (5399)
Southend-on-Sea Borough Council,http://opendatacommunities.org/id/unitary-authority/southend,ED Adults & Communities,Cultural And Related Services,4015,Power Hygne & Saf,18/03/2024,12061160,37.99,Washroom Consumables,Specialty Cleaning/Polishing (2842)
Southend-on-Sea Borough Council,http://opendatacommunities.org/id/unitary-authority/southend,ED Adults & Communities,Cultural And Related Services,4015,Power Hygne & Saf,18/03/2024,12061160,83.54,washroom consumables.,Specialty Cleaning/Polishing (2842)
Southend-on-Sea Borough Council,http://opendatacommunities.org/id/unitary-authority/southend,ED Adults & Communities,Cultural And Related Services,4015,Power Hygne & Saf,18/03/2024,12061160,84.37,Washroom consumables.,Specialty Cleaning/Polishing (2842)
Southend-on-Sea Borough Council,http://opendatacommunities.org/id/unitary-authority/southend,ED Adults & Communities,Cultural And Related Services,4055,Sainsburys S/mkts,18/03/2024,12061160,2.5,Upholstery cleaner for MM exhibition.Milk for the gallery.,Grocery Stores/Supermarkets (5411)
Southend-on-Sea Borough Council,http://opendatacommunities.org/id/unitary-authority/southend,ED Adults & Communities,Cultural And Related Services,4055,Sainsburys S/mkts,18/03/2024,12061160,5.2,Upholstery cleaner for MM exhibition.Milk for the gallery.,Grocery Stores/Supermarkets (5411)
Southend-on-Sea Borough Council,http://opendatacommunities.org/id/unitary-authority/southend,ED Adults & Communities,Cultural And Related Services,4055,S & A Supplies,18/03/2024,12061160,27,Paint and roller for MM exhibition.,Glass/Paint/Wallpaper Store (5231)
Southend-on-Sea Borough Council,http://opendatacommunities.org/id/unitary-authority/southend,ED Children & Public Health,Children And Education Services,3492,London Borough Of Haverin,18/03/2024,12061160,16,MGM birth certificate RH,Govt Serv - Default (9399)
Southend-on-Sea Borough Council,http://opendatacommunities.org/id/unitary-authority/southend,ED Environment & Place,Cultural And Related Services,7505,Mackworth Vehicle Solutio,18/03/2024,12061160,840,spare parts of the vehicle.,Auto Service Shops/Non Dealer (7538)
Southend-on-Sea Borough Council,http://opendatacommunities.org/id/unitary-authority/southend,ED Children & Public Health,Children And Education Services,3471,Lidl Gb,18/03/2024,12061160,21.66,food supplies for syc cafe and youth work,Grocery Stores/Supermarkets (5411)
Southend-on-Sea Borough Council,http://opendatacommunities.org/id/unitary-authority/southend,ED Children & Public Health,Children And Education Services,3491,Travelodge Gb0000,18/03/2024,12061160,157,Travelodge hotel room booking x 2 rooms for parents to attend contact.,Travelodge (3615)
Southend-on-Sea Borough Council,http://opendatacommunities.org/id/unitary-authority/southend,ED Strategy & Change,Children And Education Services,3201,Amazon* 205-2448986-26,18/03/2024,12061160,3.49,Marker pens for event,Misc Gen Merchandise - Def (5399)
Southend-on-Sea Borough Council,http://opendatacommunities.org/id/unitary-authority/southend,ED Adults & Communities,Central Services to the Public,1025,The Range,18/03/2024,12061160,41.24,Deco Material for Window Wanderland,Misc Home Furnishing (5719)
Southend-on-Sea Borough Council,http://opendatacommunities.org/id/unitary-authority/southend,ED Children & Public Health,Public Health,7713,Centreofexcellence,18/03/2024,12061160,29,"Training expense for Children, Young People and Families Public Health Service",Schools - Default (8299)
Southend-on-Sea Borough Council,http://opendatacommunities.org/id/unitary-authority/southend,ED Children & Public Health,Public Health,7713,Centreofexcellence,18/03/2024,12061160,29,"Training expenses for the Children, Young People and Families Public Health Service",Schools - Default (8299)
Southend-on-Sea Borough Council,http://opendatacommunities.org/id/unitary-authority/southend,ED Children & Public Health,Children And Education Services,3471,Amznbusiness,18/03/2024,12061160,41.27,Karaoke machine for use at St Cedd's youth group for children ages 8-14yrs.,Misc Speciality Retail (5999)
Southend-on-Sea Borough Council,http://opendatacommunities.org/id/unitary-authority/southend,ED Children & Public Health,Children And Education Services,3310,Domino S Pizza,19/03/2024,12061160,64.26,NEET qualification lunch for students.Receipt sent to email.,Eating Places/Restaurants (5812)
Southend-on-Sea Borough Council,http://opendatacommunities.org/id/unitary-authority/southend,ED Children & Public Health,Children And Education Services,3310,P Fenchurch St To,19/03/2024,12061160,110.7,SAR Panel for CM CLA,Passenger Railways (4112)
Southend-on-Sea Borough Council,http://opendatacommunities.org/id/unitary-authority/southend,ED Environment & Place,Central Services to the Public,7175,Dvla Vehicle Tax,19/03/2024,12061160,320,vehicle tax for FZJ,Tax Payments (9311)
Southend-on-Sea Borough Council,http://opendatacommunities.org/id/unitary-authority/southend,ED Environment & Place,Central Services to the Public,7175,Dvla Vehicle Tax,19/03/2024,12061160,320,vehicle tax for JTY,Tax Payments (9311)
Southend-on-Sea Borough Council,http://opendatacommunities.org/id/unitary-authority/southend,ED Environment & Place,Central Services to the Public,7175,Dvla Vehicle Tax,19/03/2024,12061160,320,vehicle tax for FZF,Tax Payments (9311)
Southend-on-Sea Borough Council,http://opendatacommunities.org/id/unitary-authority/southend,ED Environment & Place,Central Services to the Public,7175,Dvla Vehicle Tax,19/03/2024,12061160,320,vehicle tax for FZD,Tax Payments (9311)
Southend-on-Sea Borough Council,http://opendatacommunities.org/id/unitary-authority/southend,ED Environment & Place,Central Services to the Public,7175,Dvla Vehicle Tax,19/03/2024,12061160,320,vehicle tax for FFA,Tax Payments (9311)
Southend-on-Sea Borough Council,http://opendatacommunities.org/id/unitary-authority/southend,ED Environment & Place,Central Services to the Public,7175,Dvla Vehicle Tax,19/03/2024,12061160,320,vehicle tax for FZA,Tax Payments (9311)
Southend-on-Sea Borough Council,http://opendatacommunities.org/id/unitary-authority/southend,ED Children & Public Health,Children And Education Services,3436,Essex Wildlife Sales L,19/03/2024,12061160,5.1,drink with young person during intervention in the community,Amusement/Rec Serv - Def (7999)
Southend-on-Sea Borough Council,http://opendatacommunities.org/id/unitary-authority/southend,ED Environment & Place,Planning & Economy Services,5615,Event Listing Fee,19/03/2024,12061160,7.99,eventbright for YES network,Computer Software Stores (5734)
Southend-on-Sea Borough Council,http://opendatacommunities.org/id/unitary-authority/southend,ED Children & Public Health,Children And Education Services,3030,Lidl Gb Southend,19/03/2024,12061160,8.16,Resources for Family Centre sessions,Grocery Stores/Supermarkets (5411)
Southend-on-Sea Borough Council,http://opendatacommunities.org/id/unitary-authority/southend,ED Children & Public Health,Public Health,7677,Sainsburys S/Mkts,19/03/2024,12061160,16.05,Snacks to support delivery of Health4Life weight management programme,Grocery Stores/Supermarkets (5411)
Southend-on-Sea Borough Council,http://opendatacommunities.org/id/unitary-authority/southend,ED Children & Public Health,Public Health,7713,Amazon* 206-7606235-33,19/03/2024,12061160,129.9,Equipment to support delivery of baby massage sessions,Misc Gen Merchandise - Def (5399)
Southend-on-Sea Borough Council,http://opendatacommunities.org/id/unitary-authority/southend,ED Adults & Communities,Adult Social Care,1209,Amazon* 203-7000664-69,19/03/2024,12061160,4.02,Q-Connect 5-Part Subject Divider Multi-Punched A4 KF26081 x 3,Misc Gen Merchandise - Def (5399)
Southend-on-Sea Borough Council,http://opendatacommunities.org/id/unitary-authority/southend,ED Adults & Communities,Adult Social Care,1209,Post Office Counter,19/03/2024,12061160,4.19,Return of Faulty Equipment for Repair,Postage Stamps (9402)
Southend-on-Sea Borough Council,http://opendatacommunities.org/id/unitary-authority/southend,ED Adults & Communities,Adult Social Care,1209,Amazon* 026-9526983-16,19/03/2024,12061160,5.45,"All-Pack Solutions 10 Black Permanent Bullet Tip Marker Pens, Black x1",Misc Gen Merchandise - Def (5399)
Southend-on-Sea Borough Council,http://opendatacommunities.org/id/unitary-authority/southend,ED Adults & Communities,Adult Social Care,1209,Amazon* 026-4365158-67,19/03/2024,12061160,9.98,"3 x 400 Quality Pastel Colours Removable Sticky Post Notes 76x76mm 2 x 4Pads of 100 Sheets - Blue, *",Misc Gen Merchandise - Def (5399)
Southend-on-Sea Borough Council,http://opendatacommunities.org/id/unitary-authority/southend,ED Adults & Communities,Adult Social Care,1209,Amazon* 026-6831904-57,19/03/2024,12061160,9.99,"Tate & Lyle White Sachets, 2.5 Kg - for Unit 8",Misc Gen Merchandise - Def (5399)
Southend-on-Sea Borough Council,http://opendatacommunities.org/id/unitary-authority/southend,ED Adults & Communities,Adult Social Care,1209,Amazon* 026-9226946-88,19/03/2024,12061160,22.33,XINDA 60pcs Large Rubber Bands Elastic Bands Heavy Duty Stretched to80cm/31.5in Strong Thick Elasti *,Misc Gen Merchandise - Def (5399)
Southend-on-Sea Borough Council,http://opendatacommunities.org/id/unitary-authority/southend,ED Adults & Communities,Adult Social Care,1209,Amazon* 203-2389317-29,19/03/2024,12061160,25.56,[10 Pack] A4 File Dividers 12 Part | A4 Subject Dividers 12 Part Card FolderDividers Multi Hole Pun *,Misc Gen Merchandise - Def (5399)
Southend-on-Sea Borough Council,http://opendatacommunities.org/id/unitary-authority/southend,ED Adults & Communities,Adult Social Care,1209,Amazon* 026-6274359-42,19/03/2024,12061160,28.2,"Sellotape Original Golden Tape, Extra Sticky & Easy Tear, Large, 24mm x66m , Pack of 12",Misc Gen Merchandise - Def (5399)
Southend-on-Sea Borough Council,http://opendatacommunities.org/id/unitary-authority/southend,ED Adults & Communities,Adult Social Care,1209,Amazon* 026-5335193-49,19/03/2024,12061160,52.98,"Kenco Smooth Instant Coffee Refill 150g (Pack of 6, Total 900g) x 2 For Unit 8",Misc Gen Merchandise - Def (5399)
Southend-on-Sea Borough Council,http://opendatacommunities.org/id/unitary-authority/southend,ED Adults & Communities,Adult Social Care,1209,Amazon* 026-0100647-88,19/03/2024,12061160,65.98,Yorkshire Tea Bags 3.25 Kg (1040 tea bags) x 2 for Unit 8,Misc Gen Merchandise - Def (5399)
Southend-on-Sea Borough Council,http://opendatacommunities.org/id/unitary-authority/southend,ED Adults & Communities,Adult Social Care,1209,Frisco UK Sales Ltd,19/03/2024,12061160,288,300 x Handrail Brackets for Minor Adaptations,Welding (7692)
Southend-on-Sea Borough Council,http://opendatacommunities.org/id/unitary-authority/southend,ED Adults & Communities,Cultural And Related Services,4120,Police Supplies,19/03/2024,12061160,61.95,Safety boots and delivery,Misc Apparel/Access Shops (5699)
Southend-on-Sea Borough Council,http://opendatacommunities.org/id/unitary-authority/southend,ED Adults & Communities,Cultural And Related Services,4015,Lidl Gb Southend,19/03/2024,12061160,3.18,Hot cross buns for museum event,Grocery Stores/Supermarkets (5411)
Southend-on-Sea Borough Council,http://opendatacommunities.org/id/unitary-authority/southend,ED Adults & Communities,Cultural And Related Services,4015,Waitrose 213,19/03/2024,12061160,26,Food for museum event,Grocery Stores/Supermarkets (5411)
Southend-on-Sea Borough Council,http://opendatacommunities.org/id/unitary-authority/southend,ED Environment & Place,Planning & Economy Services,5641,Formara Ltd,19/03/2024,12061160,139.8,Flyers,Misc Publishing & Printing (2741)
Southend-on-Sea Borough Council,http://opendatacommunities.org/id/unitary-authority/southend,ED Children & Public Health,Children And Education Services,3455,The Farmers Arms,19/03/2024,12061160,75,This needs to be allocated to a different cost centre 3220 Plans and Reviews. It was for a hotel roo *,Bars/Taverns/Lounges/Discos (5813)
Southend-on-Sea Borough Council,http://opendatacommunities.org/id/unitary-authority/southend,ED Children & Public Health,Children And Education Services,3455,Bkg*hotel At Booking.C,19/03/2024,12061160,400,Oak Cottage booked for Foster Carers to meet prospective Adopters 30th March - 1st October - 400 n *,Travel Agencies (4722)
Southend-on-Sea Borough Council,http://opendatacommunities.org/id/unitary-authority/southend,ED Children & Public Health,Children And Education Services,3098,Formara Ltd,19/03/2024,12061160,334.8,Banners for service,Misc Publishing & Printing (2741)
Southend-on-Sea Borough Council,http://opendatacommunities.org/id/unitary-authority/southend,ED Children & Public Health,Children And Education Services,3030,Wm Morrisons Store,19/03/2024,12061160,13.76,snack and resources for family centres,Grocery Stores/Supermarkets (5411)
Southend-on-Sea Borough Council,http://opendatacommunities.org/id/unitary-authority/southend,ED Children & Public Health,Children And Education Services,3992,Gen Register Office,01/03/2024,12061160,-11,Credit Voucher Gen Register Office YD,Govt Serv - Default (9399)
Southend-on-Sea Borough Council,http://opendatacommunities.org/id/unitary-authority/southend,ED Adults & Communities,Adult Social Care,1209,Amazon* 026-4145199-10,19/03/2024,12061160,14.91,"Q-Connect Staples 26/6mm (Pack of 5000) x 4Rapesco R54500B2 Germ-Savvy Antibacterial, Marlin Full *",Misc Gen Merchandise - Def (5399)
Southend-on-Sea Borough Council,http://opendatacommunities.org/id/unitary-authority/southend,ED Adults & Communities,Cultural And Related Services,4120,Prosis,19/03/2024,12061160,42,Storage box for interchangeable sign post letters.,Misc Publishing & Printing (2741)
Southend-on-Sea Borough Council,http://opendatacommunities.org/id/unitary-authority/southend,ED Children & Public Health,Children And Education Services,3310,Zettle_*neils Taxi,20/03/2024,12061160,22,Taxi from Darlington to Secure Unit for SAR.,Taxicabs/Limousines (4121)
Southend-on-Sea Borough Council,http://opendatacommunities.org/id/unitary-authority/southend,ED Environment & Place,Cultural And Related Services,7515,Sumup *estuary Wholesale,20/03/2024,12061160,76.08,Flowers for the floristry orders.,Misc Speciality Retail (5999)
Southend-on-Sea Borough Council,http://opendatacommunities.org/id/unitary-authority/southend,ED Environment & Place,Cultural And Related Services,4200,Toolstation Ltd,20/03/2024,12061160,13.86,Equipment for Community Payback Project Day,Lumber/Build. Supply Stores (5211)
Southend-on-Sea Borough Council,http://opendatacommunities.org/id/unitary-authority/southend,ED Children & Public Health,Children And Education Services,3290,Royal Windsor Hotel,20/03/2024,12061160,118,Hotel to support family time - See LCS ref: REDACTED PERSONAL DATA 20/3/24,Lodging/Hotels/Motels/Resorts (7011)
Southend-on-Sea Borough Council,http://opendatacommunities.org/id/unitary-authority/southend,ED Adults & Communities,Cultural And Related Services,4020,Amazon* 202-6944888-09,20/03/2024,12061160,13.94,Foam edge guard for the side of the children's ball pit in Romans exhibition.,Misc Gen Merchandise - Def (5399)
Southend-on-Sea Borough Council,http://opendatacommunities.org/id/unitary-authority/southend,ED Children & Public Health,Children And Education Services,3396,Southend On Sea Boroug,20/03/2024,12061160,1.2,Parking for young person health appointment in Southend.,"Parking Lots, Meters, Garages (7523)"
Southend-on-Sea Borough Council,http://opendatacommunities.org/id/unitary-authority/southend,ED Children & Public Health,Children And Education Services,3396,McDonalds 396,20/03/2024,12061160,7.48,Ch Lunch- CLA visit.,Fast Food Restaurants (5814)
Southend-on-Sea Borough Council,http://opendatacommunities.org/id/unitary-authority/southend,ED Finance & Resources,Central Services to the Public,7140,C.E.F. (Southend),20/03/2024,12061160,750,LED light panels and light frames for floor 6 lift lobby light replacement,Lumber/Build. Supply Stores (5211)
Southend-on-Sea Borough Council,http://opendatacommunities.org/id/unitary-authority/southend,ED Adults & Communities,Adult Social Care,1209,Amznmktplace,20/03/2024,12061160,48.54,BANKERS BOX 10 Large System Storage Box with Lids - CardboardStorage Box with Lids for Office Stora *,Misc Speciality Retail (5999)
Southend-on-Sea Borough Council,http://opendatacommunities.org/id/unitary-authority/southend,ED Adults & Communities,Cultural And Related Services,4015,Ryman,20/03/2024,12061160,4.99,Paper for printer,Stationery Stores (5943)
Southend-on-Sea Borough Council,http://opendatacommunities.org/id/unitary-authority/southend,ED Adults & Communities,Cultural And Related Services,4025,Lidl Gb Southend,20/03/2024,12061160,123.96,Wine for private view,Grocery Stores/Supermarkets (5411)
Southend-on-Sea Borough Council,http://opendatacommunities.org/id/unitary-authority/southend,ED Children & Public Health,Children And Education Services,3471,P Shoeburyness To,20/03/2024,12061160,34.5,Train ticket to Westmister for NYA meeting for team manager.,Passenger Railways (4112)
Southend-on-Sea Borough Council,http://opendatacommunities.org/id/unitary-authority/southend,ED Adults & Communities,Adult Social Care,1209,Amazon* 026-6586834-43,19/03/2024,12061160,88.1,Leitz 180 A4 Plastic Lever Arch File 80 mm (Red) Pack of 10,Misc Gen Merchandise - Def (5399)
Southend-on-Sea Borough Council,http://opendatacommunities.org/id/unitary-authority/southend,ED Children & Public Health,Children And Education Services,3310,Northern Rail,20/03/2024,12061160,47.1,SAR Secure Accommodation Review Panel.,Passenger Railways (4112)
Southend-on-Sea Borough Council,http://opendatacommunities.org/id/unitary-authority/southend,ED Environment & Place,Central Services to the Public,2135,Chelmsford Council,20/03/2024,12061160,9.5,Parking Chelmsford,Govt Serv - Default (9399)
Southend-on-Sea Borough Council,http://opendatacommunities.org/id/unitary-authority/southend,ED Environment & Place,Central Services to the Public,2135,Greater Anglia T/o,20/03/2024,12061160,24.8,Return train to London to present Eco House project at LovLocalGov event,Passenger Railways (4112)
Southend-on-Sea Borough Council,http://opendatacommunities.org/id/unitary-authority/southend,ED Adults & Communities,Cultural And Related Services,4055,Amazon* 204-1220468-91,21/03/2024,12061160,57.88,Materials for FPG - requested by IC,Misc Gen Merchandise - Def (5399)
Southend-on-Sea Borough Council,http://opendatacommunities.org/id/unitary-authority/southend,ED Finance & Resources,Central Services to the Public,7185,Bkg*hotel At Booking.C,21/03/2024,12061160,304.55,Hotel accommodation for potential adopters to meet child.,Travel Agencies (4722)
Southend-on-Sea Borough Council,http://opendatacommunities.org/id/unitary-authority/southend,ED Environment & Place,Central Services to the Public,7175,Amznmktplace,21/03/2024,12061160,-16.52,Credit Voucher Amznmktplace for the post box delivery - amazon said they could not find the address. *,Misc Speciality Retail (5999)
Southend-on-Sea Borough Council,http://opendatacommunities.org/id/unitary-authority/southend,ED Children & Public Health,Children And Education Services,3030,Gls Educational Su,21/03/2024,12061160,49.1,Resources for Family Centre sessions,Colleges/Univ/Jc/Profession (8220)
Southend-on-Sea Borough Council,http://opendatacommunities.org/id/unitary-authority/southend,ED Children & Public Health,Children And Education Services,3396,McDonalds 1217,21/03/2024,12061160,6.09,JH- CIN visit.,Fast Food Restaurants (5814)
Southend-on-Sea Borough Council,http://opendatacommunities.org/id/unitary-authority/southend,ED Environment & Place,Central Services to the Public,7175,Dvla Vehicle Tax,21/03/2024,12061160,200,Road Fund Licence REDACTED PERSONAL DATA,Tax Payments (9311)
Southend-on-Sea Borough Council,http://opendatacommunities.org/id/unitary-authority/southend,ED Environment & Place,Central Services to the Public,7175,Dvla Vehicle Tax,21/03/2024,12061160,200,Road Fund Licence REDACTED PERSONAL DATA,Tax Payments (9311)
Southend-on-Sea Borough Council,http://opendatacommunities.org/id/unitary-authority/southend,ED Adults & Communities,Cultural And Related Services,4055,Www.Argos.Co.Uk,21/03/2024,12061160,-41,Credit Voucher Www.Argos.Co.Uk for cancelled order,Department Stores (5311)
Southend-on-Sea Borough Council,http://opendatacommunities.org/id/unitary-authority/southend,ED Adults & Communities,Cultural And Related Services,4055,Www.Argos.Co.Uk,21/03/2024,12061160,41,Clothes Rail MM,Department Stores (5311)
Southend-on-Sea Borough Council,http://opendatacommunities.org/id/unitary-authority/southend,ED Adults & Communities,Cultural And Related Services,4055,Www.Argos.Co.Uk,21/03/2024,12061160,41,Order cancelled.,Department Stores (5311)
Southend-on-Sea Borough Council,http://opendatacommunities.org/id/unitary-authority/southend,ED Children & Public Health,Children And Education Services,3396,McDonalds 1217,21/03/2024,12061160,3.99,Food purchased for a young person open to EH - LM,Fast Food Restaurants (5814)
Southend-on-Sea Borough Council,http://opendatacommunities.org/id/unitary-authority/southend,ED Environment & Place,Highways And Transport Services,5235,Trainline,21/03/2024,12061160,108.49,Train journey for a Streetworks conference to Manchester.,Passenger Railways (4112)
Southend-on-Sea Borough Council,http://opendatacommunities.org/id/unitary-authority/southend,ED Adults & Communities,Cultural And Related Services,4055,Sainsburys S/mkts,21/03/2024,12061160,3.75,Drinks for MM exhibition launch.,Grocery Stores/Supermarkets (5411)
Southend-on-Sea Borough Council,http://opendatacommunities.org/id/unitary-authority/southend,ED Adults & Communities,Cultural And Related Services,4055,Sainsburys S/mkts,21/03/2024,12061160,10.2,Drinks for MM exhibition launch.,Grocery Stores/Supermarkets (5411)
Southend-on-Sea Borough Council,http://opendatacommunities.org/id/unitary-authority/southend,ED Adults & Communities,Cultural And Related Services,4055,"Laurence Mathews Art, Cra",21/03/2024,12061160,37.9,Spray Mount for MM exhibition.,Artist/Craft Shops (5970)
Southend-on-Sea Borough Council,http://opendatacommunities.org/id/unitary-authority/southend,ED Adults & Communities,Cultural And Related Services,4055,Argos Southend,21/03/2024,12061160,48,Batteries and recharger for MM exhibition.,Discount Stores (5310)
Southend-on-Sea Borough Council,http://opendatacommunities.org/id/unitary-authority/southend,ED Children & Public Health,Children And Education Services,3992,Hm Passport Office,21/03/2024,12061160,53.5,Passport application PP,Govt Serv - Default (9399)
Southend-on-Sea Borough Council,http://opendatacommunities.org/id/unitary-authority/southend,ED Children & Public Health,Children And Education Services,3992,Hm Passport Office,21/03/2024,12061160,53.5,Passport application NP,Govt Serv - Default (9399)
Southend-on-Sea Borough Council,http://opendatacommunities.org/id/unitary-authority/southend,ED Adults & Communities,Cultural And Related Services,4055,Trainline,21/03/2024,12061160,43.99,Travel Expenses - Chalkwell to Coventry,Passenger Railways (4112)
Southend-on-Sea Borough Council,http://opendatacommunities.org/id/unitary-authority/southend,ED Environment & Place,Housing Services,6011,McDonalds 396,21/03/2024,12061160,2.16,meal for rough sleeping client,Fast Food Restaurants (5814)
Southend-on-Sea Borough Council,http://opendatacommunities.org/id/unitary-authority/southend,ED Environment & Place,Housing Services,6011,McDonalds 396,21/03/2024,12061160,5.53,meal for rough sleeping client,Fast Food Restaurants (5814)
Southend-on-Sea Borough Council,http://opendatacommunities.org/id/unitary-authority/southend,ED Environment & Place,Housing Services,6011,Sportsdirect.Com,21/03/2024,12061160,22.99,footwear for client being supported in TA,Sporting Goods Stores (5941)
Southend-on-Sea Borough Council,http://opendatacommunities.org/id/unitary-authority/southend,ED Children & Public Health,Children And Education Services,3471,Essex Supplies (UK) Lt,21/03/2024,12061160,31.2,blue roll for SYC,Specialty Cleaning/Polishing (2842)
Southend-on-Sea Borough Council,http://opendatacommunities.org/id/unitary-authority/southend,ED Children & Public Health,Children And Education Services,3249,The Works,21/03/2024,12061160,20,prizes for World Social work day for staff,Discount Stores (5310)
Southend-on-Sea Borough Council,http://opendatacommunities.org/id/unitary-authority/southend,ED Children & Public Health,Children And Education Services,3249,Holland & Barrett,21/03/2024,12061160,24.58,Materials and prizes for World Social Work day,Misc Speciality Retail (5999)
Southend-on-Sea Borough Council,http://opendatacommunities.org/id/unitary-authority/southend,ED Children & Public Health,Children And Education Services,3249,Holland & Barrett,21/03/2024,12061160,127,Materials and prizes for World Social Work day,Misc Speciality Retail (5999)
Southend-on-Sea Borough Council,http://opendatacommunities.org/id/unitary-authority/southend,ED Adults & Communities,Cultural And Related Services,4055,Amazon* 205-6381048-84,45372,12061160,29.45,Purchase of display frame for exhibition,Misc Gen Merchandise - Def (5399)
Southend-on-Sea Borough Council,http://opendatacommunities.org/id/unitary-authority/southend,ED Adults & Communities,Cultural And Related Services,4055,Amazon* 205-0488435-11,45372,12061160,76.11,Vinyl wallpaper for exhibition,Misc Gen Merchandise - Def (5399)
Southend-on-Sea Borough Council,http://opendatacommunities.org/id/unitary-authority/southend,ED Children & Public Health,Children And Education Services,3030,Home Bargains Southend,45369,12061160,7.08,Resources for family centres,Misc Gen Merchandise - Def (5399)
Southend-on-Sea Borough Council,http://opendatacommunities.org/id/unitary-authority/southend,ED Children & Public Health,Children And Education Services,3471,Amazon* 204-1270753-30,45372,12061160,13.48,Plastic cutlery for use at Woodgrange youth group sessions for children ages 8-14yrs as they cook ev *,Misc Gen Merchandise - Def (5399)
Southend-on-Sea Borough Council,http://opendatacommunities.org/id/unitary-authority/southend,ED Strategy & Change,Central Services to the Public,7130,Amazon* 203-7296411-97,45373,12061160,56.43,30 x USB Charging cables for Mobile Phones.,Misc Gen Merchandise - Def (5399)
Southend-on-Sea Borough Council,http://opendatacommunities.org/id/unitary-authority/southend,ED Strategy & Change,Central Services to the Public,7145,Biffa Waste Services Limi,45373,12061160,522.76,Refuse collections fees for Porters Civic House,Utilities/Elec/Gas/H2O/Sani (4900)
Southend-on-Sea Borough Council,http://opendatacommunities.org/id/unitary-authority/southend,ED Environment & Place,Cultural And Related Services,4200,Sumup *engraving Service,45373,12061160,175,Donated seat plaques,Misc Speciality Retail (5999)
Southend-on-Sea Borough Council,http://opendatacommunities.org/id/unitary-authority/southend,ED Strategy & Change,Central Services to the Public,2045,Cookie Control Pro,45373,12061160,54,Cookie Control pro,Computer Program/Sys Design (7372)
Southend-on-Sea Borough Council,http://opendatacommunities.org/id/unitary-authority/southend,Department of the Chief Executive,Cultural And Related Services,7111,Thomson Reuters UK Ltd,45373,12061160,105.6,JCT ON DEMAND MW2016 CONTRACT FOR PROJECT 1828,Professional Services - Def (8999)
Southend-on-Sea Borough Council,http://opendatacommunities.org/id/unitary-authority/southend,ED Environment & Place,Central Services to the Public,7175,Amazon* 203-8518488-77,45373,12061160,13.32,extension lead for tickfield office. agreed by AW,Misc Gen Merchandise - Def (5399)
Southend-on-Sea Borough Council,http://opendatacommunities.org/id/unitary-authority/southend,ED Environment & Place,Central Services to the Public,7175,Amazon* 202-3752547-53,45373,12061160,29.98,Stylus pen for AW laptop - product authorised by IT,Misc Gen Merchandise - Def (5399)
Southend-on-Sea Borough Council,http://opendatacommunities.org/id/unitary-authority/southend,ED Children & Public Health,Children And Education Services,3436,Basildon Parking,45373,12061160,6,PARKIMG AT CROWN COURT,"Parking Lots, Meters, Garages (7523)"
Southend-on-Sea Borough Council,http://opendatacommunities.org/id/unitary-authority/southend,ED Children & Public Health,Children And Education Services,3436,Nandos,45373,12061160,7.9,drink with another case manager whilst at Basildon crown court for the day,Eating Places/Restaurants (5812)
Southend-on-Sea Borough Council,http://opendatacommunities.org/id/unitary-authority/southend,ED Children & Public Health,Children And Education Services,3436,Basildon Parking,45373,12061160,6,Basildon Crown Court Sentence Hearing - Car Parking Fee.,"Parking Lots, Meters, Garages (7523)"
Southend-on-Sea Borough Council,http://opendatacommunities.org/id/unitary-authority/southend,ED Children & Public Health,Children And Education Services,3436,Costa Coffee 43010695,45373,12061160,8.4,Basildon Crown Court Sentencing Hearing - Beverage.,Fast Food Restaurants (5814)
Southend-on-Sea Borough Council,http://opendatacommunities.org/id/unitary-authority/southend,ED Children & Public Health,Children And Education Services,3436,Nandos,45373,12061160,8.5,Basildon Crown Court Sentence Hearing - Lunch.,Eating Places/Restaurants (5812)
Southend-on-Sea Borough Council,http://opendatacommunities.org/id/unitary-authority/southend,ED Finance & Resources,Central Services to the Public,7140,Amazon* 204-0147956-67,45373,12061160,14.97,replacement trolley wheels,Misc Gen Merchandise - Def (5399)
Southend-on-Sea Borough Council,http://opendatacommunities.org/id/unitary-authority/southend,ED Finance & Resources,Central Services to the Public,7140,Amazon* 204-8533837-33,45373,12061160,161.1,kettles for civic stock,Misc Gen Merchandise - Def (5399)
Southend-on-Sea Borough Council,http://opendatacommunities.org/id/unitary-authority/southend,ED Finance & Resources,Central Services to the Public,7140,Defibshop.Co.Uk,45373,12061160,162,replacement defib pads for civic 1 reception desk,Lab/Med/Hospital Equipment (5047)
Southend-on-Sea Borough Council,http://opendatacommunities.org/id/unitary-authority/southend,ED Adults & Communities,Cultural And Related Services,4025,The Range,45373,12061160,1.59,Electrical tape for wires in exhibition.,Misc Home Furnishing (5719)
Southend-on-Sea Borough Council,http://opendatacommunities.org/id/unitary-authority/southend,ED Adults & Communities,Cultural And Related Services,4055,Sainsburys S/mkts,45373,12061160,5.2,Milk for the gallery,Grocery Stores/Supermarkets (5411)
Southend-on-Sea Borough Council,http://opendatacommunities.org/id/unitary-authority/southend,ED Adults & Communities,Cultural And Related Services,4055,Van Looys,45373,12061160,100,Chips for the MM exhibition opening.,Eating Places/Restaurants (5812)
Southend-on-Sea Borough Council,http://opendatacommunities.org/id/unitary-authority/southend,ED Adults & Communities,Cultural And Related Services,4055,Krystal* I1814987,45373,12061160,9.59,Domain Renewal Fee,Computer Network/Info Svcs (4816)
Southend-on-Sea Borough Council,http://opendatacommunities.org/id/unitary-authority/southend,ED Adults & Communities,Cultural And Related Services,4055,Krystal* I1856956,45373,12061160,132,Domain: fpg.org.uk Annually Fee,Computer Network/Info Svcs (4816)
Southend-on-Sea Borough Council,http://opendatacommunities.org/id/unitary-authority/southend,ED Environment & Place,Central Services to the Public,1006,Greater Anglia,45373,12061160,20.4,Train ticket to attend Temporary Accommodation workshop in Chelmsford,Passenger Railways (4112)
Southend-on-Sea Borough Council,http://opendatacommunities.org/id/unitary-authority/southend,ED Children & Public Health,Public Health,7713,Paypal,45373,12061160,119.94,"Equipment purchase for the Children, Young People and Families Public Health Service",Charitable/Soc Service Orgs (8398)
Southend-on-Sea Borough Council,http://opendatacommunities.org/id/unitary-authority/southend,ED Adults & Communities,Cultural And Related Services,4120,Amazon* 204-4288350-32,45373,12061160,13.83,For use on the Pier,Misc Gen Merchandise - Def (5399)
Southend-on-Sea Borough Council,http://opendatacommunities.org/id/unitary-authority/southend,ED Adults & Communities,Cultural And Related Services,4120,Amazon* 204-7108587-28,45373,12061160,109,For use on the Pier,Misc Gen Merchandise - Def (5399)
Southend-on-Sea Borough Council,http://opendatacommunities.org/id/unitary-authority/southend,ED Adults & Communities,Cultural And Related Services,4120,Pgr Timber Limited,45373,12061160,327.67,For use on the Pier,Lumber/Build. Supply Stores (5211)
Southend-on-Sea Borough Council,http://opendatacommunities.org/id/unitary-authority/southend,ED Adults & Communities,Cultural And Related Services,4055,Www.Argos.Co.Uk,45374,12061160,9,Hangers MM,Department Stores (5311)
Southend-on-Sea Borough Council,http://opendatacommunities.org/id/unitary-authority/southend,ED Adults & Communities,Cultural And Related Services,4055,Www.Argos.Co.Uk,45374,12061160,12,Hangers MM,Department Stores (5311)
Southend-on-Sea Borough Council,http://opendatacommunities.org/id/unitary-authority/southend,ED Adults & Communities,Cultural And Related Services,4055,Sainsburys S/mkt,45374,12061160,2.2,"Oat Milk, Biscuits, Coffee",Grocery Stores/Supermarkets (5411)
Southend-on-Sea Borough Council,http://opendatacommunities.org/id/unitary-authority/southend,ED Adults & Communities,Cultural And Related Services,4055,Sainsburys S/mkt,45374,12061160,7.1,"Oat Milk, Biscuits, Coffee",Grocery Stores/Supermarkets (5411)
Southend-on-Sea Borough Council,http://opendatacommunities.org/id/unitary-authority/southend,ED Adults & Communities,Cultural And Related Services,4120,Sp Engraved-Plaques.,45375,12061160,35.24,dedicated plaque for Pier head bench,Computer Software Stores (5734)
Southend-on-Sea Borough Council,http://opendatacommunities.org/id/unitary-authority/southend,ED Adults & Communities,Cultural And Related Services,4120,Amazon* 204-7712049-88,45373,12061160,29.9,For use on the Pier,Misc Gen Merchandise - Def (5399)
Southend-on-Sea Borough Council,http://opendatacommunities.org/id/unitary-authority/southend,ED Environment & Place,Cultural And Related Services,7515,Sjaak Van Der Vijver B,45376,12061160,142.46,Flowers for the floristry orders.!!! the invoice is 136.98 - but my pay card was charged 142.46. I *,Florist Supplies/Nursery Stock (5193)
Southend-on-Sea Borough Council,http://opendatacommunities.org/id/unitary-authority/southend,ED Strategy & Change,Children And Education Services,3201,Wp*edge Training Ltd,45376,12061160,180,BIA Legal Update (Annual Refresher) 28 March 2024,Professional Services - Def (8999)
Southend-on-Sea Borough Council,http://opendatacommunities.org/id/unitary-authority/southend,ED Children & Public Health,Children And Education Services,3030,Asda Superstore,45376,12061160,5.56,Resources for Family Centre sessions,Grocery Stores/Supermarkets (5411)
Southend-on-Sea Borough Council,http://opendatacommunities.org/id/unitary-authority/southend,ED Children & Public Health,Children And Education Services,3030,Asda Superstore,45376,12061160,6.6,Snacks and resources for family centres,Grocery Stores/Supermarkets (5411)
Southend-on-Sea Borough Council,http://opendatacommunities.org/id/unitary-authority/southend,ED Children & Public Health,Children And Education Services,3030,Asda Superstore,45376,12061160,22.49,Snacks and resources for family centres,Grocery Stores/Supermarkets (5411)
Southend-on-Sea Borough Council,http://opendatacommunities.org/id/unitary-authority/southend,ED Children & Public Health,Children And Education Services,3030,The Range,45376,12061160,77.98,Resources for the allotment,Misc Home Furnishing (5719)
Southend-on-Sea Borough Council,http://opendatacommunities.org/id/unitary-authority/southend,ED Environment & Place,Central Services to the Public,7175,Dvla Vehicle Tax,45376,12061160,320,Road Fund Licence REDACTED PERSONAL DATA,Tax Payments (9311)
Southend-on-Sea Borough Council,http://opendatacommunities.org/id/unitary-authority/southend,ED Children & Public Health,Children And Education Services,3030,Amazon* Summ021,45376,12061160,9.98,first aid supplies summercourt,Misc Gen Merchandise - Def (5399)
Southend-on-Sea Borough Council,http://opendatacommunities.org/id/unitary-authority/southend,ED Adults & Communities,Adult Social Care,1060,Tesco Stores 2073,45376,12061160,15.05,Cat Food for SM,Grocery Stores/Supermarkets (5411)
Southend-on-Sea Borough Council,http://opendatacommunities.org/id/unitary-authority/southend,ED Environment & Place,Housing Services,6011,Sainsburys S/mkts,45376,12061160,5.6,food and drink for rough sleeping client being supported by RSI team,Grocery Stores/Supermarkets (5411)
Southend-on-Sea Borough Council,http://opendatacommunities.org/id/unitary-authority/southend,ED Environment & Place,Housing Services,6011,Sainsburys S/mkts,45376,12061160,0.3,food and drink for rough sleeping client being supported by RSI team,Grocery Stores/Supermarkets (5411)
Southend-on-Sea Borough Council,http://opendatacommunities.org/id/unitary-authority/southend,ED Children & Public Health,Children And Education Services,3471,Amazon* 026-1647741-00,45376,12061160,6.39,diary for SYC,Misc Gen Merchandise - Def (5399)
Southend-on-Sea Borough Council,http://opendatacommunities.org/id/unitary-authority/southend,ED Children & Public Health,Public Health,7713,Amazon* 202-1882376-94,45376,12061160,21.99,"Equipment purchase for the Children, Young People and Families Public Health Service",Misc Gen Merchandise - Def (5399)
Southend-on-Sea Borough Council,http://opendatacommunities.org/id/unitary-authority/southend,ED Children & Public Health,Public Health,7713,Amazon* 202-2466090-00,45376,12061160,40.99,"Equipment purchase for the Children, Young People and Families Public Health Service",Misc Gen Merchandise - Def (5399)
Southend-on-Sea Borough Council,http://opendatacommunities.org/id/unitary-authority/southend,ED Children & Public Health,Public Health,8700,United Kingdom Health Sec,45376,12061160,250,Conference attendance for Public Health Team,Med/Health Services - Def (8099)
Southend-on-Sea Borough Council,http://opendatacommunities.org/id/unitary-authority/southend,ED Adults & Communities,Cultural And Related Services,4261,Amznbusiness,45377,12061160,13.49,Book for customer request unavailable from normal supplier,Misc Speciality Retail (5999)
Southend-on-Sea Borough Council,http://opendatacommunities.org/id/unitary-authority/southend,ED Adults & Communities,Cultural And Related Services,4120,Amazon* 204-4295908-18,45375,12061160,28.48,For use on the Pier,Misc Gen Merchandise - Def (5399)
Southend-on-Sea Borough Council,http://opendatacommunities.org/id/unitary-authority/southend,ED Adults & Communities,Cultural And Related Services,4120,Amazon* 204-3852522-86,45375,12061160,46.06,For use on the Pier,Misc Gen Merchandise - Def (5399)
Southend-on-Sea Borough Council,http://opendatacommunities.org/id/unitary-authority/southend,ED Adults & Communities,Cultural And Related Services,4280,Amazon* 202-6233779-60,45376,12061160,17.99,toilet rolls for use by staff and customers at Westcliff Library,Misc Gen Merchandise - Def (5399)
Southend-on-Sea Borough Council,http://opendatacommunities.org/id/unitary-authority/southend,ED Adults & Communities,Adult Social Care,1209,Amazon* 203-6348257-10,45376,12061160,279,Hand Pallet Truck 2000kg Capacity Pump Truck Euro Manual 2 Ton PalletJack Fully Assembled,Misc Gen Merchandise - Def (5399)
Southend-on-Sea Borough Council,http://opendatacommunities.org/id/unitary-authority/southend,ED Adults & Communities,Cultural And Related Services,4256,Royal Mail Group,45377,12061160,1.5,Postage paid to collect an item from the postage from a sender that hadn't paid enough postage to se *,Postage Stamps (9402)
Southend-on-Sea Borough Council,http://opendatacommunities.org/id/unitary-authority/southend,ED Children & Public Health,Children And Education Services,3436,Restaurant Hub Rayleigh W,45377,12061160,4.75,dRINK WITH YOUNG PERSON DURING INTERVENTION OOA,Eating Places/Restaurants (5812)
Southend-on-Sea Borough Council,http://opendatacommunities.org/id/unitary-authority/southend,ED Children & Public Health,Children And Education Services,3030,Sainsburys S/mkts,45377,12061160,5,Resources for Family Centre sessions,Grocery Stores/Supermarkets (5411)
Southend-on-Sea Borough Council,http://opendatacommunities.org/id/unitary-authority/southend,ED Environment & Place,Planning & Economy Services,5641,Event Listing Fee,45377,12061160,7.99,ATE workshop listing,Computer Software Stores (5734)
Southend-on-Sea Borough Council,http://opendatacommunities.org/id/unitary-authority/southend,ED Finance & Resources,Central Services to the Public,7140,Pp*aquaplus Uk,45377,12061160,180,water stock for civic tower,Stationery Stores (5943)
Southend-on-Sea Borough Council,http://opendatacommunities.org/id/unitary-authority/southend,ED Children & Public Health,Children And Education Services,3396,McDonalds 1217,45377,12061160,5.21,Food purchased for a young person open to social care - SH,Fast Food Restaurants (5814)
Southend-on-Sea Borough Council,http://opendatacommunities.org/id/unitary-authority/southend,ED Children & Public Health,Children And Education Services,3992,Hm Passport Office,45377,12061160,53.5,Passport application CM,Govt Serv - Default (9399)
Southend-on-Sea Borough Council,http://opendatacommunities.org/id/unitary-authority/southend,ED Children & Public Health,Children And Education Services,3030,Amazon* Blen040,45377,12061160,6.99,stationery pens blenheim,Misc Gen Merchandise - Def (5399)
Southend-on-Sea Borough Council,http://opendatacommunities.org/id/unitary-authority/southend,ED Children & Public Health,Children And Education Services,3030,Amazon* Centre010,45377,12061160,8.99,cleaning bucket for centre place,Misc Gen Merchandise - Def (5399)
Southend-on-Sea Borough Council,http://opendatacommunities.org/id/unitary-authority/southend,ED Children & Public Health,Children And Education Services,3030,Amazon* Blen040,45377,12061160,19.98,stationer pads blenheim,Misc Gen Merchandise - Def (5399)
Southend-on-Sea Borough Council,http://opendatacommunities.org/id/unitary-authority/southend,ED Children & Public Health,Children And Education Services,3471,Lidl Gb,45377,12061160,15.4,food items for SYC cafe and youth work,Grocery Stores/Supermarkets (5411)
Southend-on-Sea Borough Council,http://opendatacommunities.org/id/unitary-authority/southend,Department of the Chief Executive,Cultural And Related Services,7111,Anylamp,45377,12061160,643.2,Forum - 40No Philips CorePro LED PLT HF 15W lamps,Home Supply Warehouse Stores (5200)
Southend-on-Sea Borough Council,http://opendatacommunities.org/id/unitary-authority/southend,ED Children & Public Health,Children And Education Services,3030,Amazon* Centre010,45377,12061160,10.78,signing in book refills plus spare for centre place,Misc Gen Merchandise - Def (5399)
Southend-on-Sea Borough Council,http://opendatacommunities.org/id/unitary-authority/southend,ED Children & Public Health,Children And Education Services,3030,Wm Morrisons Store,45377,12061160,12.95,snack and resources for play centres,Grocery Stores/Supermarkets (5411)
Southend-on-Sea Borough Council,http://opendatacommunities.org/id/unitary-authority/southend,ED Children & Public Health,Children And Education Services,3105,Www.Terralec.Com,45378,12061160,179.82,Mic and guitar leads,Household Appliance Stores (5722)
Southend-on-Sea Borough Council,http://opendatacommunities.org/id/unitary-authority/southend,ED Children & Public Health,Children And Education Services,3030,Amazon* Friar029,45378,12061160,23.99,friars bulk toilet rolls,Misc Gen Merchandise - Def (5399)
Southend-on-Sea Borough Council,http://opendatacommunities.org/id/unitary-authority/southend,ED Adults & Communities,Adult Social Care,1060,Amazon* 205-4508344-57,45378,12061160,23.99,Foot stool for DM for adult VPW,Misc Gen Merchandise - Def (5399)
Southend-on-Sea Borough Council,http://opendatacommunities.org/id/unitary-authority/southend,ED Environment & Place,Environmental And Regulatory Services,4505,Formara Ltd,45378,12061160,140.4,signs,Misc Publishing & Printing (2741)
Southend-on-Sea Borough Council,http://opendatacommunities.org/id/unitary-authority/southend,ED Environment & Place,Central Services to the Public,2041,Park Inn Senpd F&b,45378,12061160,450,Payment for transport of 3 families moving from hotel to onward accommodation in Southend,Park Inns International (3553)
Southend-on-Sea Borough Council,http://opendatacommunities.org/id/unitary-authority/southend,ED Children & Public Health,Central Services to the Public,1035,Parcelforce Wl,45378,12061160,24,Courier for staff leaver laptop,Courier Services (4215)
Southend-on-Sea Borough Council,http://opendatacommunities.org/id/unitary-authority/southend,ED Adults & Communities,Cultural And Related Services,4015,Zettle_*richard Baxter,45378,12061160,63,Local art for sale in Beecroft Gallery,Misc Speciality Retail (5999)
Southend-on-Sea Borough Council,http://opendatacommunities.org/id/unitary-authority/southend,ED Adults & Communities,Cultural And Related Services,4015,Zettle_*julie O Sulliv,45378,12061160,180.25,Local art for sale in Beecroft Gallery,Commercial Photo/Art/Graph (7333)
Southend-on-Sea Borough Council,http://opendatacommunities.org/id/unitary-authority/southend,ED Children & Public Health,Children And Education Services,3471,Amazon* 204-2934109-29,45378,12061160,51.98,Two sensory mood lamps for use at SYC and Cluny SEND group sessions. Ideal for non-verbal children.,Misc Gen Merchandise - Def (5399)
